Workbook

Sheet INSTRUCTIONS (hidden)
A2: DUE DATE: Thursday January 15th | B2: Each agency should only enter data in its own sheet
B3: Summary sheets are populated with formula-based references only
B4: All input columns are marked with red text, & yellow background: | D4: like this
B5: FY16 President's Budget numbers are for Agency Use Only (not public)
B7: Action Required:
B9: 1. On your agency's 12-15 sheet, input funding levels for:
C10: A. FY2016 President's Budget
C11: B. FY2015 Enacted***
C12: ***(use best available estimates)
B14: 2. On the summary sheets, check your agency's funding levels
C15: to ensure all funding levels have been inputted correctly
C16: and that all formulas are correct. Check colums titled in: | D16: green
B18: 3. Save Document on MAX community (with this sheet active)
B20: 4. Close document
B22: 5. Re-open document from the MAX community site
C23: to ensure that your changes were properly saved
B25: 6. Email ahettinger@omb.eop.gov with completion notification

Sheet Agency Summary
B1: Calfed Bay-Delta Crosscut
B2: (in millions of dollars)
B3: Year | C3: Total | D3: Bureau of Reclamation | E3: Corps of Engineers | F3: USDA NRCS | G3: NOAA Fisheries (NMFS) | H3: Geological Survey | I3: Fish and Wildlife Service | J3: Environmental Protection Agency2
B4: 1998 | C4: 261.6 | D4: 153.4 | E4: 100.7 | F4: 0.0 | G4: 0.3 | H4: 3.2 | I4: 0.9 | J4: 3.2
B5: 1999 | C5: 240.3 | D5: 114.7 | E5: 103.3 | F5: 14.5 | G5: 0.4 | H5: 3.2 | I5: 1.1 | J5: 3.1
B6: 2000 | C6: 310.8 | D6: 138.5 | E6: 93.8 | F6: 12.9 | G6: 0.5 | H6: 4.3 | I6: 3.7 | J6: 57.3
B7: 2001 | C7: 228.4 | D7: 79.8 | E7: 54.2 | F7: 17.0 | G7: 0.6 | H7: 5.4 | I7: 18.2 | J7: 53.4
B8: 2002 | C8: 266.2 | D8: 103.3 | E8: 58.2 | F8: 39.1 | G8: 0.6 | H8: 5.1 | I8: 5.6 | J8: 54.3
B9: 2003 | C9: 208.0 | D9: 74.2 | E9: 57.8 | F9: 38.4 | G9: 0.8 | H9: 4.9 | I9: 11.2 | J9: 20.7
B10: 2004 | C10: 279.3 | D10: 75.7 | E10: 72.6 | F10: 48.8 | G10: 0.8 | H10: 4.9 | I10: 13.7 | J10: 62.8
B11: 2005 | C11: 282.6 | D11: 81.1 | E11: 52.3 | F11: 36.4 | G11: 0.8 | H11: 5.4 | I11: 8.9 | J11: 97.7
B12: 2006 | C12: 279.0 | D12: 99.8 | E12: 91.3 | F12: 34.6 | G12: 0.8 | H12: 5.2 | I12: 10.7 | J12: 36.6
B13: 2007 | C13: 263.9 | D13: 101.3 | E13: 87.4 | F13: 26.9 | G13: 0.5 | H13: 4.1 | I13: 7.5 | J13: 36.1
B14: 2008 | C14: 252.8 | D14: 66.1 | E14: 51.2 | F14: 40.9 | G14: 0.5 | H14: 3.7 | I14: 22.0 | J14: 68.3
B15: 20091 | C15: 531.9 | D15: 156.8 | E15: 140.7 | F15: 44.4 | G15: 0.5 | H15: 3.7 | I15: 24.2 | J15: 161.5
B16: 2010 | C16: 341.1 | D16: 94.7 | E16: 72.5 | F16: 39.7 | G16: 0.5 | H16: 3.4 | I16: 6.5 | J16: 123.7
B17: 2011 | C17: 430.4 | D17: 185.5 | E17: 98.1 | F17: 56.1 | G17: 1.5 | H17: 6.0 | I17: 5.2 | J17: 78.0
B18: 2012 | C18: 388.1 | D18: 187.2 | E18: 44.5 | F18: 56.1 | G18: 1.4 | H18: 8.1 | I18: 4.9 | J18: 85.9
B19: 2013 | C19: 350.1 | D19: 158.6 | E19: 53.8 | F19: 44.9 | G19: 1.3 | H19: 6.9 | I19: 4.9 | J19: 79.8
B20: 2014 | C20: 423.5 | D20: 190.0 | E20: 86.1 | F20: 52.2 | G20: 1.4 | H20: 6.0 | I20: 4.9 | J20: 83.0
B21: 2015 | C21: 381.9 | D21: 173.8 | E21: 57.0 | F21: 53.0 | G21: 1.5 | H21: 8.6 | I21: 4.9 | J21: 83.1
B22: 2016 | C22: 455.7 | D22: 167.2 | E22: 147.7 | F22: 46.0 | G22: 1.6 | H22: 7.6 | I22: 6.0 | J22: 79.7
B23: 2017 | C23: 381.2 | D23: 164.7 | E23: 85.0 | F23: 33.8 | G23: 1.6 | H23: 11.1 | I23: 6.0 | J23: 79.1
B24: 2018 | C24: 422.1 | D24: 160.3 | E24: 86.2 | F24: 80.6 | G24: 1.5 | H24: 8.2 | I24: 5.9 | J24: 79.4
B25: 2019 | C25: 445.7 | D25: 180.0 | E25: 129.2 | F25: 53.7 | G25: 1.5 | H25: 7.8 | I25: 6.0 | J25: 67.5
B26: 2020 | C26: 651.5 | D26: 361.2 | E26: 148.3 | F26: 56.0 | G26: 1.5 | H26: 7.9 | I26: 6.0 | J26: 70.5
B27: 2021 | C27: 732.4 | D27: 409.4 | E27: 122.9 | F27: 86.6 | G27: 1.5 | H27: 7.3 | I27: 5.9 | J27: 98.8
B28: 2022 | C28: 861.4 | D28: 409.4 | E28: 135.9 | F28: 64.3 | G28: 1.5 | H28: 7.3 | I28: 5.9 | J28: 237.1
B29: 2023 | C29: 592.4 | D29: 163.2 | E29: 203.0 | F29: 64.3 | G29: 1.5 | H29: 7.3 | I29: 5.9 | J29: 147.2
B30: 2024 | C30: 597.0 | D30: 165.0 | E30: 176.3 | F30: 64.3 | G30: 1.6 | H30: 5.3 | I30: 5.9 | J30: 178.5
B31: 2025 estimate | C31: =SUM(D31:J31) -> 881.4 | D31: ='Component Summary'!P11 -> 173.3 | E31: ='Component Summary'!P16 -> 134.1 | F31: ='Component Summary'!P21 -> 61.3 | G31: ='Component Summary'!P26 -> 1.6 | H31: ='Component Summary'!P31 -> 7.3 | I31: ='Component Summary'!P36 -> 5.9 | J31: ='Component Summary'!P41 -> 497.9
B32: 1The 2009 column includes American Recovery and Reinvestment Act projects and activities.
B33: 2Starting in 2010, the EPA figures include estimated projections of California's total State Revolving Fund (SRF) allocations. Prior year columns do not.
B34: Note that starting in 2022, totals may include funding from the Infrastructure Investment and Jobs Act.

Sheet Component Summary
B2: CALFED BAY-DELTA CROSSCUT (in millions of dollars)
C4: --- Enacted --- | P4: Pres Bud
C5: FY 2012 | D5: FY 2013 | E5: FY 2014 | F5: FY 2015 | G5: FY 2016 | H5: FY 2017 | I5: FY 2018 | J5: FY 2019 | K5: FY 2020 | L5: FY 2021 | M5: FY 2022 | N5: FY 2023 | O5: FY 2024 | P5: FY 2025
B6: Total, All Agencies | C6: =SUM(C7:C10) -> 379.50 | D6: 328.57 | E6: 375.07 | F6: 365.45 | G6: 356.83 | H6: 381.20 | I6: =SUM(I7:I10) -> 422.14 | J6: =SUM(J7:J10) -> 445.69 | K6: 651.49 | L6: 732.38 | M6: 861.38 | N6: 733.43 | O6: =SUM(O7:O10) -> 928.98 | P6: =SUM(P7:P10) -> 881.42
B7: Renewed Federal Partnership | C7: =SUM(C12+C17+C22+C27+C32+C37+C42) -> 3.18 | D7: 2.88 | E7: 2.79 | F7: 2.84 | G7: 2.99 | H7: 3.46 | I7: 3.38 | J7: =SUM(J12+J17+J22+J27+J32+J37+J42) -> 2.81 | K7: 3.00 | L7: 2.97 | M7: 3.02 | N7: 3.25 | O7: =SUM(O12+O17+O22+O27+O32+O37+O42) -> 3.84 | P7: 3.85
B8: Smarter Water Supply and Use | C8: 72.92 | D8: 73.64 | E8: 69.79 | F8: 86.17 | G8: 81.16 | H8: 69.94 | I8: 112.25 | J8: =SUM(J13+J18+J23+J28+J33+J38+J43) -> 85.44 | K8: 68.77 | L8: =SUM(L13+L18+L23+L28+L33+L38+L43) -> 111.42 | M8: =SUM(M13+M18+M23+M28+M33+M38+M43) -> 184.48 | N8: =SUM(N13+N18+N23+N28+N33+N38+N43) -> 203.65 | O8: 358.99 | P8: 360.98
B9: Habitat Restoration | C9: 268.21 | D9: 220.21 | E9: 236.37 | F9: 245.95 | G9: 232.70 | H9: 235.68 | I9: 229.09 | J9: =SUM(J14+J19+J24+J29+J34+J39+J44) -> 241.56 | K9: 441.62 | L9: 485.39 | M9: 530.46 | N9: 339.92 | O9: 380.84 | P9: 374.15
B10: Drought Floodplain and Management | C10: 35.19 | D10: 31.83 | E10: 66.13 | F10: 30.49 | G10: 39.98 | H10: 72.12 | I10: 77.43 | J10: =SUM(J15+J20+J25+J30+J35+J40+J45) -> 115.87 | K10: 138.10 | L10: 132.61 | M10: 143.43 | N10: 186.61 | O10: 185.30 | P10: 142.43
B11: Bureau of Reclamation | C11: =SUM(C12:C15) -> 187.20 | D11: 158.61 | E11: 189.98 | F11: 173.84 | G11: 167.20 | H11: =SUM(H12:H15) -> 164.71 | I11: =SUM(I12:I15) -> 160.34 | J11: =SUM(J12:J15) -> 180.00 | K11: 361.21 | L11: 409.40 | M11: 409.40 | N11: 163.17 | O11: =SUM(O12:O15) -> 164.96 | P11: =SUM(P12:P15) -> 173.33
B12: Renewed Federal Partnership | C12: ='BOR 12-20'!D5 -> 2.00 | D12: ='BOR 12-20'!F5 -> 1.80 | E12: ='BOR 12-20'!H5 -> 1.70 | F12: ='BOR 12-20'!J5 -> 1.70 | G12: ='BOR 12-20'!L5 -> 1.70 | H12: ='BOR 12-20'!N5 -> 2.20 | I12: ='BOR 12-20'!P5 -> 2.19 | J12: ='BOR 12-20'!R5 -> 1.70 | K12: ='BOR 12-20'!T5 -> 1.70 | L12: ='BOR 12-20'!V5 -> 1.70 | M12: ='BOR 12-20'!X5 -> 1.70 | N12: ='BOR 12-20'!Z5 -> 1.90 | O12: ='BOR 12-20'!AB5 -> 2.60 | P12: ='BOR 12-20'!AD5 -> 2.60
B13: Smarter Water Supply and Use | D13: ='BOR 12-20'!F8 -> 11.05 | E13: ='BOR 12-20'!H8 -> 14.85 | F13: ='BOR 12-20'!J8 -> 7.95 | G13: ='BOR 12-20'!L8 -> 7.20 | H13: ='BOR 12-20'!N8 -> 5.81 | I13: ='BOR 12-20'!P8 -> 5.27 | J13: ='BOR 12-20'!R8 -> 3.85 | K13: ='BOR 12-20'!T8 -> 2.25 | L13: ='BOR 12-20'!V8 -> 32.10 | M13: ='BOR 12-20'!X8 -> 32.10 | N13: ='BOR 12-20'!Z8 -> 2.25 | O13: ='BOR 12-20'!AB8 -> 3.58 | P13: ='BOR 12-20'!AD8 -> 3.58
B14: Habitat Restoration | C14: ='BOR 12-20'!D35 -> 185.20 | D14: ='BOR 12-20'!F35 -> 145.76 | E14: ='BOR 12-20'!H35 -> 173.43 | F14: ='BOR 12-20'!J35 -> 164.19 | G14: ='BOR 12-20'!L35 -> 158.30 | H14: ='BOR 12-20'!N35 -> 156.70 | I14: ='BOR 12-20'!P35 -> 152.88 | J14: ='BOR 12-20'!R35 -> 174.45 | K14: ='BOR 12-20'!T35 -> 357.26 | L14: ='BOR 12-20'!V35 -> 375.60 | M14: ='BOR 12-20'!X35 -> 375.60 | N14: =+'BOR 12-20'!Z35 -> 159.02 | O14: =+'BOR 12-20'!AB35 -> 158.78 | P14: =+'BOR 12-20'!AD35 -> 167.15
B15: Drought Floodplain and Management | C15: ='BOR 12-20'!D96 -> 0.00 | D15: ='BOR 12-20'!F96 -> 0.00 | E15: ='BOR 12-20'!H96 -> 0.00 | F15: ='BOR 12-20'!J96 -> 0.00 | G15: ='BOR 12-20'!L96 -> 0.00 | H15: ='BOR 12-20'!N96 -> 0.00 | I15: ='BOR 12-20'!P96 -> 0.00 | J15: ='BOR 12-20'!R96 -> 0.00 | K15: ='BOR 12-20'!T96 -> 0.00 | L15: ='BOR 12-20'!V96 -> 0.00 | M15: ='BOR 12-20'!X96 -> 0.00 | N15: ='BOR 12-20'!Z96 -> 0.00 | O15: ='BOR 12-20'!AB96 -> 0.00 | P15: ='BOR 12-20'!AD117 -> 0.00
B16: Corps of Engineers | C16: =SUM(C17:C20) -> 35.94 | D16: 32.22 | E16: 37.62 | F16: 40.53 | G16: 48.79 | H16: 85.01 | I16: =SUM(I17:I20) -> 86.17 | J16: =SUM(J17:J20) -> 129.25 | K16: =SUM(K17:K20) -> 148.33 | L16: =SUM(L17:L20) -> 122.91 | M16: =SUM(M17:M20) -> 135.89 | N16: =SUM(N17:N20) -> 179.21 | O16: =SUM(O17:O20) -> 176.11 | P16: =SUM(P17:P20) -> 134.09
B17: Renewed Federal Partnership | C17: =+'USACE 12-20'!D5 -> 0.21 | D17: =+'USACE 12-20'!F5 -> 0.12 | E17: =+'USACE 12-20'!H5 -> 0.12 | F17: =+'USACE 12-20'!J5 -> 0.09 | G17: =+'USACE 12-20'!L5 -> 0.10 | H17: =+'USACE 12-20'!N5 -> 0.05 | I17: =+'USACE 12-20'!P5 -> 0.02 | J17: =+'USACE 12-20'!R5 -> 0.00 | K17: =+'USACE 12-20'!T5 -> 0.04 | L17: =+'USACE 12-20'!V5 -> 0.01 | M17: =+'USACE 12-20'!X5 -> 0.02 | N17: ='USACE 12-20'!Z5 -> 0.01 | O17: ='USACE 12-20'!AB5 -> 0.00 | P17: ='USACE 12-20'!AD5 -> 0.00
B18: Smarter Water Supply and Use | C18: =+'USACE 12-20'!D7:D7 -> 0.00 | D18: =+'USACE 12-20'!F7 -> 0.02 | E18: =+'USACE 12-20'!H7 -> 0.25 | F18: =+'USACE 12-20'!J7 -> 0.00 | G18: =+'USACE 12-20'!L7 -> 0.00 | H18: =+'USACE 12-20'!N7 -> 0.00 | I18: =+'USACE 12-20'!P7 -> 0.01 | J18: =+'USACE 12-20'!R7 -> 0.17 | K18: =+'USACE 12-20'!T7 -> 0.00 | L18: =+'USACE 12-20'!V7 -> 0.02 | M18: =+'USACE 12-20'!X7 -> 0.00 | N18: ='USACE 12-20'!Z7 -> 0.00 | O18: ='USACE 12-20'!AB7 -> 0.00 | P18: ='USACE 12-20'!AD7 -> 0.00
B19: Habitat Restoration | C19: =+'USACE 12-20'!D9 -> 0.69 | D19: =+'USACE 12-20'!F9 -> 0.39 | E19: =+'USACE 12-20'!H9 -> 1.28 | F19: =+'USACE 12-20'!J9 -> 10.09 | G19: =+'USACE 12-20'!L9 -> 8.85 | H19: =+'USACE 12-20'!N9 -> 12.98 | I19: =+'USACE 12-20'!P9 -> 8.86 | J19: =+'USACE 12-20'!R9 -> 13.34 | K19: =+'USACE 12-20'!T9 -> 10.33 | L19: =+'USACE 12-20'!V9 -> 12.95 | M19: =+'USACE 12-20'!X9 -> 3.48 | N19: ='USACE 12-20'!Z9 -> 3.63 | O19: ='USACE 12-20'!AB9 -> 1.86 | P19: ='USACE 12-20'!AD9 -> 1.81
B20: Drought Floodplain and Management | C20: =+'USACE 12-20'!D14 -> 35.05 | D20: =+'USACE 12-20'!F14 -> 31.69 | E20: =+'USACE 12-20'!H14 -> 35.98 | F20: =+'USACE 12-20'!J14 -> 30.35 | G20: =+'USACE 12-20'!L14 -> 39.84 | H20: =+'USACE 12-20'!N14 -> 71.98 | I20: =+'USACE 12-20'!P14 -> 77.29 | J20: =+'USACE 12-20'!R14 -> 115.73 | K20: =+'USACE 12-20'!T14 -> 137.96 | L20: =+'USACE 12-20'!V14 -> 109.93 | M20: =+'USACE 12-20'!X14 -> 132.39 | N20: ='USACE 12-20'!Z14 -> 175.57 | O20: ='USACE 12-20'!AB14 -> 174.26 | P20: ='USACE 12-20'!AD14 -> 132.29
B21: USDA - NRCS | C21: =SUM(C22:C25) -> 56.08 | D21: 44.91 | E21: 52.16 | F21: 52.97 | G21: 46.01 | H21: 33.79 | I21: =SUM(I22:I25) -> 80.58 | J21: =SUM(J22:J25) -> 53.69 | K21: 55.99 | L21: =SUM(L22:L25) -> 86.60 | M21: =SUM(M22:M25) -> 64.31 | N21: =SUM(N22:N25) -> 64.31 | O21: =SUM(O22:O25) -> 64.31 | P21: =SUM(P22:P25) -> 61.35
B22: Renewed Federal Partnership | C22: ='NRCS 12-20'!D5 -> 0.00 | D22: ='NRCS 12-20'!F5 -> 0.00 | E22: ='NRCS 12-20'!H5 -> 0.00 | F22: ='NRCS 12-20'!J5 -> 0.00 | G22: ='NRCS 12-20'!L5 -> 0.00 | H22: ='NRCS 12-20'!N5 -> 0.00 | I22: ='NRCS 12-20'!P5 -> 0.00 | J22: ='NRCS 12-20'!R5 -> 0.00 | K22: ='NRCS 12-20'!T5 -> 0.00 | L22: ='NRCS 12-20'!V5 -> 0.00 | M22: ='NRCS 12-20'!X5 -> 0.00 | N22: ='NRCS 12-20'!Z5 -> 0.00 | O22: ='NRCS 12-20'!AB5 -> 0.00 | P22: ='NRCS 12-20'!AD5 -> 0.00
B23: Smarter Water Supply and Use | C23: ='NRCS 12-20'!D6 -> 35.59 | D23: ='NRCS 12-20'!F6 -> 27.50 | E23: ='NRCS 12-20'!H6 -> 17.67 | F23: ='NRCS 12-20'!J6 -> 41.10 | G23: ='NRCS 12-20'!L6 -> 38.64 | H23: ='NRCS 12-20'!N6 -> 29.11 | I23: ='NRCS 12-20'!P6 -> 72.01 | J23: ='NRCS 12-20'!R6 -> 46.15 | K23: ='NRCS 12-20'!T6 -> 33.49 | L23: ='NRCS 12-20'!V6 -> 36.55 | M23: ='NRCS 12-20'!X6 -> 34.88 | N23: ='NRCS 12-20'!Z6 -> 34.88 | O23: ='NRCS 12-20'!AB6 -> 34.88 | P23: ='NRCS 12-20'!AD6 -> 35.09
B24: Habitat Restoration | C24: ='NRCS 12-20'!D11 -> 20.48 | D24: ='NRCS 12-20'!F11 -> 17.41 | E24: ='NRCS 12-20'!H11 -> 4.48 | F24: ='NRCS 12-20'!J11 -> 11.88 | G24: ='NRCS 12-20'!L11 -> 7.37 | H24: ='NRCS 12-20'!N11 -> 4.68 | I24: ='NRCS 12-20'!P11 -> 8.57 | J24: ='NRCS 12-20'!R11 -> 7.54 | K24: ='NRCS 12-20'!T11 -> 22.50 | L24: ='NRCS 12-20'!V11 -> 27.50 | M24: ='NRCS 12-20'!X11 -> 18.53 | N24: ='NRCS 12-20'!Z11 -> 18.53 | O24: ='NRCS 12-20'!AB11 -> 18.53 | P24: ='NRCS 12-20'!AD11 -> 16.26
B25: Drought Floodplain and Management | C25: ='NRCS 12-20'!D18 -> 0.00 | D25: ='NRCS 12-20'!F18 -> 0.00 | E25: ='NRCS 12-20'!H18 -> 30.00 | F25: ='NRCS 12-20'!J18 -> 0.00 | G25: ='NRCS 12-20'!L18 -> 0.00 | H25: ='NRCS 12-20'!N18 -> 0.00 | I25: ='NRCS 12-20'!P18 -> 0.00 | J25: ='NRCS 12-20'!R18 -> 0.00 | K25: ='NRCS 12-20'!T18 -> 0.00 | L25: ='NRCS 12-20'!V18 -> 22.54 | M25: ='NRCS 12-20'!X18 -> 10.90 | N25: ='NRCS 12-20'!Z18 -> 10.90 | O25: ='NRCS 12-20'!AB18 -> 10.90 | P25: ='NRCS 12-20'!AD18 -> 10.00
B26: NOAA Fisheries | C26: =SUM(C27:C30) -> 1.39 | D26: 1.30 | E26: 1.39 | F26: 1.52 | G26: 1.64 | H26: 1.57 | I26: =SUM(I27:I30) -> 1.51 | J26: 1.52 | K26: 1.55 | L26: 1.51 | M26: 1.53 | N26: =SUM(N27:N30) -> 1.53 | O26: =SUM(O27:O30) -> 1.56 | P26: =SUM(P27:P30) -> 1.59
B27: Renewed Federal Partnership | C27: ='NOAA 12-20'!D5 -> 0.18 | D27: ='NOAA 12-20'!F5 -> 0.17 | E27: ='NOAA 12-20'!H5 -> 0.18 | F27: ='NOAA 12-20'!J5 -> 0.26 | G27: ='NOAA 12-20'!L5 -> 0.41 | H27: ='NOAA 12-20'!N5 -> 0.42 | I27: ='NOAA 12-20'!P5 -> 0.38 | J27: ='NOAA 12-20'!R5 -> 0.31 | K27: ='NOAA 12-20'!T5 -> 0.46 | L27: ='NOAA 12-20'!V5 -> 0.45 | M27: ='NOAA 12-20'!X5 -> 0.50 | N27: ='NOAA 12-20'!Z5 -> 0.54 | O27: ='NOAA 12-20'!AB5 -> 0.44 | P27: ='NOAA 12-20'!AD5 -> 0.45
B28: Smarter Water Supply and Use | C28: ='NOAA 12-20'!D8 -> 1.00 | D28: ='NOAA 12-20'!F8 -> 0.94 | E28: ='NOAA 12-20'!H8 -> 1.00 | F28: ='NOAA 12-20'!J8 -> 1.18 | G28: ='NOAA 12-20'!L8 -> 1.11 | H28: ='NOAA 12-20'!N8 -> 1.03 | I28: ='NOAA 12-20'!P8 -> 0.98 | J28: ='NOAA 12-20'!R8 -> 1.06 | K28: ='NOAA 12-20'!T8 -> 0.89 | L28: ='NOAA 12-20'!V8 -> 0.94 | M28: ='NOAA 12-20'!X8 -> 0.87 | N28: ='NOAA 12-20'!Z8 -> 0.79 | O28: ='NOAA 12-20'!AB8 -> 0.91 | P28: ='NOAA 12-20'!AD8 -> 0.93
B29: Habitat Restoration | C29: ='NOAA 12-20'!D10 -> 0.21 | D29: ='NOAA 12-20'!F10 -> 0.20 | E29: ='NOAA 12-20'!H10 -> 0.21 | F29: ='NOAA 12-20'!J10 -> 0.07 | G29: ='NOAA 12-20'!L10 -> 0.13 | H29: ='NOAA 12-20'!N10 -> 0.13 | I29: ='NOAA 12-20'!P10 -> 0.15 | J29: ='NOAA 12-20'!R10 -> 0.15 | K29: ='NOAA 12-20'!T10 -> 0.20 | L29: ='NOAA 12-20'!V10 -> 0.12 | M29: ='NOAA 12-20'!X10 -> 0.17 | N29: ='NOAA 12-20'!Z10 -> 0.20 | O29: ='NOAA 12-20'!AB10 -> 0.21 | P29: ='NOAA 12-20'!AD10 -> 0.21
B30: Drought Floodplain and Management | C30: ='NOAA 12-20'!E13 -> 0.00 | D30: ='NOAA 12-20'!F13 -> 0.00 | E30: ='NOAA 12-20'!H13 -> 0.00 | F30: ='NOAA 12-20'!J13 -> 0.00 | G30: ='NOAA 12-20'!L13 -> 0.00 | H30: ='NOAA 12-20'!N13 -> 0.00 | I30: ='NOAA 12-20'!P13 -> 0.00 | J30: ='NOAA 12-20'!R13 -> 0.00 | K30: ='NOAA 12-20'!T13 -> 0.00 | L30: ='NOAA 12-20'!V13 -> 0.00 | M30: ='NOAA 12-20'!X13 -> 0.00 | N30: ='NOAA 12-20'!Z13 -> 0.00 | O30: ='NOAA 12-20'!AB13 -> 0.00 | P30: ='NOAA 12-20'!AD13 -> 0.00
B31: Geological Survey | C31: =SUM(C32:C35) -> 8.14 | D31: 6.88 | E31: 6.04 | F31: 8.63 | G31: 7.57 | H31: 11.06 | I31: =SUM(I32:I35) -> 8.18 | J31: =SUM(J32:J35) -> 7.80 | K31: 7.95 | L31: =SUM(L32:L35) -> 7.26 | M31: =SUM(M32:M35) -> 7.26 | N31: =SUM(N32:N35) -> 7.26 | O31: =SUM(O32:O35) -> 7.26 | P31: =SUM(P32:P35) -> 7.26
B32: Renewed Federal Partnership | C32: ='USGS 12-20'!D5 -> 0.00 | D32: ='USGS 12-20'!F5 -> 0.00 | E32: ='USGS 12-20'!H5 -> 0.00 | F32: ='USGS 12-20'!J5 -> 0.00 | G32: ='USGS 12-20'!L5 -> 0.00 | H32: ='USGS 12-20'!N5 -> 0.00 | I32: ='USGS 12-20'!P5 -> 0.00 | J32: ='USGS 12-20'!R5 -> 0.00 | K32: ='USGS 12-20'!T5 -> 0.00 | L32: ='USGS 12-20'!V5 -> 0.00 | M32: ='USGS 12-20'!X5 -> 0.00 | N32: ='USGS 12-20'!Z5 -> 0.00 | O32: ='USGS 12-20'!AB5 -> 0.00 | P32: ='USGS 12-20'!AD5 -> 0.00
B33: Smarter Water Supply and Use | C33: ='USGS 12-20'!D6 -> 0.00 | D33: ='USGS 12-20'!F6 -> 0.00 | E33: ='USGS 12-20'!H6 -> 0.00 | F33: ='USGS 12-20'!J6 -> 0.00 | G33: ='USGS 12-20'!L6 -> 0.00 | H33: ='USGS 12-20'!N6 -> 0.00 | I33: ='USGS 12-20'!P6 -> 0.00 | J33: ='USGS 12-20'!R6 -> 0.00 | K33: ='USGS 12-20'!T6 -> 0.00 | L33: ='USGS 12-20'!V6 -> 0.00 | M33: ='USGS 12-20'!X6 -> 0.00 | N33: ='USGS 12-20'!Z6 -> 0.00 | O33: ='USGS 12-20'!AB6 -> 0.00 | P33: ='USGS 12-20'!AD6 -> 0.00
B34: Habitat Restoration | C34: ='USGS 12-20'!D7 -> 8.14 | D34: ='USGS 12-20'!F7 -> 6.88 | E34: ='USGS 12-20'!H7 -> 6.04 | F34: ='USGS 12-20'!J7 -> 8.63 | G34: ='USGS 12-20'!L7 -> 7.57 | H34: ='USGS 12-20'!N7 -> 11.06 | I34: ='USGS 12-20'!P7 -> 8.18 | J34: ='USGS 12-20'!R7 -> 7.80 | K34: ='USGS 12-20'!T7 -> 7.95 | L34: ='USGS 12-20'!V7 -> 7.26 | M34: ='USGS 12-20'!X7 -> 7.26 | N34: ='USGS 12-20'!Z7 -> 7.26 | O34: ='USGS 12-20'!AB7 -> 7.26 | P34: ='USGS 12-20'!AD7 -> 7.26
B35: Drought Floodplain and Management | C35: ='USGS 12-20'!D15 -> 0.00 | D35: ='USGS 12-20'!F15 -> 0.00 | E35: ='USGS 12-20'!H15 -> 0.00 | F35: ='USGS 12-20'!J15 -> 0.00 | G35: ='USGS 12-20'!L15 -> 0.00 | H35: ='USGS 12-20'!N15 -> 0.00 | I35: ='USGS 12-20'!P15 -> 0.00 | J35: ='USGS 12-20'!R15 -> 0.00 | K35: ='USGS 12-20'!T15 -> 0.00 | L35: ='USGS 12-20'!V15 -> 0.00 | M35: ='USGS 12-20'!X8 -> 0.00 | N35: ='USGS 12-20'!Z8 -> 0.00 | O35: ='USGS 12-20'!AB8 -> 0.00 | P35: ='USGS 12-20'!AD15 -> 0.00
B36: Fish & Wildlife Service | C36: =SUM(C37:C40) -> 4.86 | D36: 4.86 | E36: 4.86 | F36: 4.86 | G36: 5.96 | H36: 5.96 | I36: =SUM(I37:I40) -> 5.94 | J36: =SUM(J37:J40) -> 5.97 | K36: 5.97 | L36: =SUM(L37:L40) -> 5.94 | M36: =SUM(M37:M40) -> 5.94 | N36: =SUM(N37:N40) -> 5.94 | O36: =SUM(O37:O40) -> 5.94 | P36: =SUM(P37:P40) -> 5.94
B37: Renewed Federal Partnership | C37: ='F&WS 12-20'!D5 -> 0.79 | D37: ='F&WS 12-20'!F5 -> 0.79 | E37: ='F&WS 12-20'!H5 -> 0.79 | F37: ='F&WS 12-20'!J5 -> 0.79 | G37: ='F&WS 12-20'!L5 -> 0.79 | H37: ='F&WS 12-20'!N5 -> 0.79 | I37: ='F&WS 12-20'!P5 -> 0.79 | J37: ='F&WS 12-20'!R5 -> 0.80 | K37: ='F&WS 12-20'!T5 -> 0.80 | L37: ='F&WS 12-20'!V5 -> 0.80 | M37: ='F&WS 12-20'!X5 -> 0.80 | N37: ='F&WS 12-20'!Z5 -> 0.80 | O37: ='F&WS 12-20'!AB5 -> 0.80 | P37: ='F&WS 12-20'!AD5 -> 0.80
B38: Smarter Water Supply and Use | C38: ='F&WS 12-20'!D15 -> 0.99 | D38: ='F&WS 12-20'!F15 -> 0.99 | E38: ='F&WS 12-20'!H15 -> 0.99 | F38: ='F&WS 12-20'!J15 -> 0.99 | G38: ='F&WS 12-20'!L15 -> 0.99 | H38: ='F&WS 12-20'!N15 -> 0.99 | I38: ='F&WS 12-20'!P15 -> 0.98 | J38: ='F&WS 12-20'!R15 -> 0.99 | K38: ='F&WS 12-20'!T15 -> 0.99 | L38: ='F&WS 12-20'!V15 -> 0.96 | M38: ='F&WS 12-20'!X15 -> 0.96 | N38: ='F&WS 12-20'!Z15 -> 0.96 | O38: ='F&WS 12-20'!AB15 -> 0.96 | P38: ='F&WS 12-20'!AD15 -> 0.96
B39: Habitat Restoration | C39: ='F&WS 12-20'!D23 -> 2.94 | D39: ='F&WS 12-20'!F23 -> 2.94 | E39: ='F&WS 12-20'!H23 -> 2.94 | F39: ='F&WS 12-20'!J23 -> 2.94 | G39: ='F&WS 12-20'!L23 -> 4.04 | H39: ='F&WS 12-20'!N23 -> 4.04 | I39: ='F&WS 12-20'!P23 -> 4.02 | J39: ='F&WS 12-20'!R23 -> 4.04 | K39: ='F&WS 12-20'!T23 -> 4.04 | L39: ='F&WS 12-20'!V23 -> 4.04 | M39: ='F&WS 12-20'!X23 -> 4.04 | N39: ='F&WS 12-20'!Z23 -> 4.04 | O39: ='F&WS 12-20'!AB23 -> 4.04 | P39: ='F&WS 12-20'!AD23 -> 4.04
B40: Drought Floodplain and Management | C40: ='F&WS 12-20'!D31 -> 0.14 | D40: ='F&WS 12-20'!F31 -> 0.14 | E40: ='F&WS 12-20'!H31 -> 0.14 | F40: ='F&WS 12-20'!J31 -> 0.14 | G40: ='F&WS 12-20'!L31 -> 0.14 | H40: ='F&WS 12-20'!N31 -> 0.14 | I40: ='F&WS 12-20'!P31 -> 0.14 | J40: ='F&WS 12-20'!R31 -> 0.14 | K40: ='F&WS 12-20'!T31 -> 0.14 | L40: ='F&WS 12-20'!V31 -> 0.14 | M40: ='F&WS 12-20'!X31 -> 0.14 | N40: ='F&WS 12-20'!Z31 -> 0.14 | O40: ='F&WS 12-20'!AB31 -> 0.14 | P40: ='F&WS 12-20'!AD31 -> 0.14
B41: EPA | C41: =SUM(C42:C45) -> 85.90 | D41: 79.79 | E41: 83.01 | F41: 83.10 | G41: 79.65 | H41: 79.10 | I41: =SUM(I42:I45) -> 79.43 | J41: =SUM(J42:J45) -> 67.46 | K41: 70.50 | L41: =SUM(L42:L45) -> 98.78 | M41: =SUM(M42:M45) -> 237.06 | N41: =SUM(N42:N45) -> 312.02 | O41: =SUM(O42:O45) -> 508.84 | P41: =SUM(P42:P45) -> 497.86
B42: Renewed Federal Partnership | C42: ='EPA 12-20'!D5 -> 0.00 | D42: ='EPA 12-20'!F5 -> 0.00 | E42: ='EPA 12-20'!H5 -> 0.00 | F42: ='EPA 12-20'!J5 -> 0.00 | G42: ='EPA 12-20'!L5 -> 0.00 | H42: ='EPA 12-20'!N5 -> 0.00 | I42: ='EPA 12-20'!P5 -> 0.00 | J42: ='EPA 12-20'!R5 -> 0.00 | K42: ='EPA 12-20'!T5 -> 0.00 | L42: ='EPA 12-20'!V5 -> 0.00 | M42: ='EPA 12-20'!X5+'EPA 12-20'!Z5 -> 0.00 | N42: ='EPA 12-20'!AB5+'EPA 12-20'!AD5 -> 0.00 | O42: ='EPA 12-20'!AF5+'EPA 12-20'!AH5 -> 0.00 | P42: ='EPA 12-20'!AJ5+'EPA 12-20'!AL5 -> 0.00
B43: Smarter Water Supply and Use | C43: ='EPA 12-20'!D6 -> 35.34 | D43: ='EPA 12-20'!F6 -> 33.15 | E43: ='EPA 12-20'!H6 -> 35.03 | F43: ='EPA 12-20'!J6 -> 34.95 | G43: ='EPA 12-20'!L6 -> 33.23 | H43: ='EPA 12-20'!N6 -> 33.00 | I43: ='EPA 12-20'!P6 -> 33.00 | J43: ='EPA 12-20'!R6 -> 33.22 | K43: ='EPA 12-20'!T6 -> 31.15 | L43: ='EPA 12-20'!V6 -> 40.85 | M43: ='EPA 12-20'!X6+'EPA 12-20'!Z6 -> 115.67 | N43: ='EPA 12-20'!AB6+'EPA 12-20'!AD6 -> 164.77 | O43: ='EPA 12-20'!AF6+'EPA 12-20'!AH6 -> 318.66 | P43: ='EPA 12-20'!AJ6+'EPA 12-20'!AL6 -> 320.42
B44: Habitat Restoration | C44: ='EPA 12-20'!D8 -> 50.56 | D44: ='EPA 12-20'!F8 -> 46.63 | E44: ='EPA 12-20'!H8 -> 47.99 | F44: ='EPA 12-20'!J8 -> 48.15 | G44: ='EPA 12-20'!L8 -> 46.43 | H44: ='EPA 12-20'!N8 -> 46.10 | I44: ='EPA 12-20'!P8 -> 46.43 | J44: ='EPA 12-20'!R8 -> 34.24 | K44: ='EPA 12-20'!T8 -> 39.34 | L44: ='EPA 12-20'!V8 -> 57.93 | M44: ='EPA 12-20'!X8+'EPA 12-20'!Z8 -> 121.39 | N44: ='EPA 12-20'!AB8+'EPA 12-20'!AD8 -> 147.24 | O44: ='EPA 12-20'!AF8+'EPA 12-20'!AH8 -> 190.17 | P44: ='EPA 12-20'!AJ8+'EPA 12-20'!AL8 -> 177.44
B45: Drought Floodplain and Management | C45: ='EPA 12-20'!D12 -> 0.00 | D45: ='EPA 12-20'!F12 -> 0.00 | E45: ='EPA 12-20'!H12 -> 0.00 | F45: ='EPA 12-20'!J12 -> 0.00 | G45: ='EPA 12-20'!L12 -> 0.00 | H45: ='EPA 12-20'!N12 -> 0.00 | I45: ='EPA 12-20'!P12 -> 0.00 | J45: ='EPA 12-20'!R12 -> 0.00 | K45: ='EPA 12-20'!T12 -> 0.00 | L45: ='EPA 12-20'!V12 -> 0.00 | M45: ='EPA 12-20'!X12+'EPA 12-20'!Z12 -> 0.00 | N45: ='EPA 12-20'!AB9+'EPA 12-20'!AD9 -> 0.00 | O45: ='EPA 12-20'!AF12+'EPA 12-20'!AH12 -> 0.00 | P45: ='EPA 12-20'!AJ12+'EPA 12-20'!AL12 -> 0.00

Sheet CALFED (pre FY12) (hidden)
B3: CALFED
C4: FY 2011
C5: Enacted
B6: Total, All Agencies | C6: =SUM(C7:C18) -> 430.383
B7: Water Management | C7: =C21+C35+C49+C63+C77+C91+C105 -> 64.064
B8: Storage | C8: 5.437
B9: Conveyance | C9: 5.534
B10: Water Use Efficiency | C10: 40.670
B11: Water Transfers | C11: 0.000
B12: Environmental Water Account | C12: 0.000
B13: Drinking Water Quality | C13: 50.591
B14: Levee System Integrity | C14: 4.440
B15: Ecosystem Restoration | C15: 233.805
B16: Science | C16: 22.382
B17: Oversight & Coordination | C17: 3.460
B18: Other | C18: 0.000
B20: Bureau of Reclamation | C20: =SUM(C21:C32) -> 185.533
B21: Water Management
B22: Storage | C22: =SUM('BOR 2011'!D53:E53) -> 5.437
B23: Conveyance | C23: =SUM('BOR 2011'!D62:E62) -> 5.534
B24: Water Use Efficiency | C24: =SUM('BOR 2011'!D29:E29) -> 18.370
B25: Water Transfers | C25: =SUM('BOR 2011'!D42:E42) -> 0.000
B26: Environmental Water Account | C26: =SUM('BOR 2011'!D27:E27) -> 0.000
B27: Drinking Water Quality | C27: =SUM('BOR 2011'!D44:E44) -> 13.360
B28: Levee System Integrity
B29: Ecosystem Restoration | C29: =SUM('BOR 2011'!D6:E6) -> 124.541
B30: Science | C30: =SUM('BOR 2011'!D78:E78) -> 16.295
B31: Oversight & Coordination | C31: =SUM('BOR 2011'!D83:E83) -> 1.996
B32: Other
B34: Corps of Engineers | C34: =SUM(C35:C46) -> 98.135
B35: Water Management | C35: =SUM('USACE 2011'!D67:E67) -> 64.064
B36: Storage | C36: =SUM('USACE 2011'!D60:E60) -> 0.000
B37: Conveyance
B38: Water Use Efficiency
B39: Water Transfers
B40: Environmental Water Account
B41: Drinking Water Quality
B42: Levee System Integrity | C42: ='USACE 2011'!E54 -> 4.440
B43: Ecosystem Restoration | C43: =SUM('USACE 2011'!D6:E6) -> 29.332
B44: Science | C44: =SUM('USACE 2011'!D62:E62) -> 0.000
B45: Oversight & Coordination | C45: =SUM('USACE 2011'!D64:E64) -> 0.299
B46: Other
B48: USDA - NRCS | C48: =SUM(C49:C60) -> 56.075
B49: Water Management
B50: Storage
B51: Conveyance
B52: Water Use Efficiency | C52: =SUM('NRCS 2011'!D11:E11) -> 22.300
B53: Water Transfers
B54: Environmental Water Account
B55: Drinking Water Quality
B56: Levee System Integrity
B57: Ecosystem Restoration | C57: =SUM('NRCS 2011'!D6:E6) -> 33.775
B58: Science
B59: Oversight & Coordination
B60: Other
B62: NOAA Fisheries | C62: =SUM(C63:C74) -> 1.465
B63: Water Management
B64: Storage
B65: Conveyance
B66: Water Use Efficiency
B67: Water Transfers
B68: Environmental Water Account
B69: Drinking Water Quality
B70: Levee System Integrity
B71: Ecosystem Restoration | C71: =SUM('NOAA 2011'!D6:E6) -> 0.225
B72: Science | C72: =SUM('NOAA 2011'!D9:E9) -> 0.075
B73: Oversight & Coordination | C73: =SUM('NOAA 2011'!D11:E11) -> 1.165
B74: Other
B76: Geological Survey | C76: =SUM(C77:C88) -> 6.012
B77: Water Management
B78: Storage
B79: Conveyance
B80: Water Use Efficiency
B81: Water Transfers
B82: Environmental Water Account
B83: Drinking Water Quality
B84: Levee System Integrity
B85: Ecosystem Restoration
B86: Science | C86: =SUM(USGS2011!D6:E6) -> 6.012
B87: Oversight & Coordination
B88: Other
B90: Fish & Wildlife Service | C90: =SUM(C91:C102) -> 5.193
B91: Water Management
B92: Storage
B93: Conveyance
B94: Water Use Efficiency
B95: Water Transfers
B96: Environmental Water Account
B97: Drinking Water Quality
B98: Levee System Integrity
B99: Ecosystem Restoration | C99: =SUM('F&WS 2011'!D6:E6) -> 5.193
B100: Science | C100: =SUM('F&WS 2011'!D20:E20) -> 0.000
B101: Oversight & Coordination
B102: Other
B104: EPA | C104: =SUM(C105:C116) -> 77.970
B105: Water Management
B106: Storage
B107: Conveyance
B108: Water Use Efficiency | C108: =SUM('EPA 2011'!D10:E10) -> 0.000
B109: Water Transfers
B110: Environmental Water Account
B111: Drinking Water Quality | C111: =SUM('EPA 2011'!D12:E12) -> 37.231
B112: Levee System Integrity
B113: Ecosystem Restoration | C113: =SUM('EPA 2011'!D6:E6) -> 40.739
B114: Science | C114: =SUM('EPA 2011'!D14:E14) -> 0.000
B115: Oversight & Coordination
B116: Other

Sheet BOR 12-20
B2: Bureau of Reclamation Bay-Delta Totals Fiscal Years 2012 through 2025 (in millions of dollars)
B3: Interim Federal Action Plan (IFAP) Functional Areas / Programs and Projects | C3: FY 2012 | E3: FY 2013 | G3: FY 2014 | I3: FY 2015 | K3: FY 2016 | M3: FY 2017 4/ | O3: FY 2018 | Q3: FY 2019 | S3: FY 2020 | U3: FY 2021 | W3: FY 2022 | Y3: FY 2023 | AA3: FY 2024 | AC3: FY 2025
C4: sub | D4: total | E4: sub | F4: total | G4: sub | H4: total | I4: sub | J4: total | K4: sub | L4: total | M4: sub | N4: total | O4: sub | P4: total | Q4: sub | R4: total | S4: sub | T4: total | U4: sub | V4: total | W4: sub | X4: total | Y4: sub | Z4: total | AA4: sub | AB4: total | AC4: sub | AD4: total
B5: Renewed Federal State Partnership | D5: =SUM(D6:D6) -> $2.000 | F5: =SUM(F6:F6) -> $1.800 | H5: $1.700 | J5: =SUM(J6:J6) -> $1.700 | L5: =SUM(L6:L6) -> $1.700 | N5: =SUM(N6:N6) -> $2.200 | P5: =SUM(P6:P6) -> $2.190 | R5: =SUM(R6:R6) -> $1.700 | T5: =SUM(T6:T6) -> $1.700 | V5: =SUM(V6:V6) -> $1.700 | X5: =SUM(X6:X6) -> $1.700 | Z5: =SUM(Z6:Z6) -> $1.900 | AB5: 2.600 | AD5: =SUM(AD6:AD6) -> 2.600
B6: CALFED Program Management, Oversight, and Coordination | D6: =SUM(C7) -> $2.000 | F6: =SUM(E7) -> $1.800 | H6: =SUM(G7) -> $1.700 | J6: =SUM(I7) -> $1.700 | L6: =SUM(K7) -> $1.700 | N6: =SUM(M7) -> 2.20 | P6: =SUM(O7) -> 2.19 | R6: =SUM(Q7) -> 1.70 | T6: =SUM(S7) -> 1.70 | V6: =SUM(U7) -> 1.70 | X6: =SUM(W7) -> 1.70 | Z6: =SUM(Y7) -> 1.90 | AB6: 2.6 | AD6: =SUM(AC7) -> 2.6
B7: California Bay-Delta Restoration, P.L.108-361 | C7: $2.000 | E7: $1.800 | G7: $1.700 | I7: $1.700 | K7: $1.700 | M7: 2.20 | O7: 2.19 | Q7: 1.70 | S7: 1.70 | U7: 1.70 | W7: 1.70 | Y7: 1.90 | AA7: 2.6 | AC7: 2.6
B8: Smarter Water Supply & Use | D8: =SUM(D9,D12,D14,D16,D18,D20,D22,D25,D27,D30,D32) -> $17.687 | F8: =SUM(F9,F12,F14,F16,F18,F20,F22,F25,F27,F30,F32) -> $11.045 | H8: =SUM(H9,H12,H14,H16,H18,H20,H22,H25,H27,H30,H32) -> $14.850 | J8: =SUM(J9,J12,J14,J16,J18,J20,J22,J25,J27,J30,J32) -> $7.950 | L8: =SUM(L9,L12,L14,L16,L18,L20,L22,L25,L27,L30,L32) -> $7.200 | N8: =SUM(N9,N12,N14,N16,N18,N20,N22,N25,N27,N30,N32) -> 5.81 | P8: =SUM(P9,P12,P14,P16,P18,P20,P22,P25,P27,P30,P32) -> 5.27 | R8: =SUM(R9,R12,R14,R16,R18,R20,R22,R25,R27,R30,R32) -> 3.85 | T8: =SUM(T9,T12,T14,T16,T18,T20,T22,T25,T27,T30,T32) -> 2.25 | V8: =SUM(V9,V12,V14,V16,V18,V20,V22,V25,V27,V30,V32) -> 32.10 | X8: =SUM(X9,X12,X14,X16,X18,X20,X22,X25,X27,X30,X32) -> 32.10 | Z8: =SUM(Z9,Z12,Z14,Z16,Z18,Z20,Z22,Z25,Z27,Z30,Z32) -> 2.25 | AB8: 3.58 | AD8: =SUM(AD9,AD12,AD14,AD16,AD18,AD20,AD22,AD25,AD27,AD30,AD32) -> 3.58
B9: Water Conservation Projects | D9: =SUM(C10:C11) -> $7.500 | F9: =SUM(E10:E11) -> $3.690 | H9: =SUM(G10:G11) -> $7.000 | J9: =SUM(I10:I11) -> $3.300 | L9: =SUM(K10:K11) -> $3.500 | N9: =SUM(M10:M11) -> 3.00 | P9: =SUM(O10:O11) -> 2.98 | R9: =SUM(Q10:Q11) -> 2.25 | T9: =SUM(S10:S11) -> 2.25 | V9: =SUM(U10:U11) -> 4.75 | X9: =SUM(W10:W11) -> 4.75 | Z9: =SUM(Y10:Y11) -> 2.25 | AB9: 3.58 | AD9: =SUM(AC10:AC11) -> 3.58
B10: California Bay-Delta Restoration, P.L.108-361 | C10: $5.000 | E10: $3.690 | G10: $2.000 | I10: $3.300 | K10: $3.500 | M10: 3.00 | O10: 2.98 | Q10: 2.25 | S10: 2.25 | U10: 2.25 | W10: 2.25 | Y10: 2.25 | AA10: 2.25 | AC10: 2.25
B11: W&RR1 | C11: $2.500 | G11: $5.000 | U11: 2.50 | W11: 2.50 | AA11: 1.33 | AC11: 1.33
B12: San Jose Area Water Reclamation and Reuse Program | D12: =SUM(C13) -> $0.244 | F12: =SUM(E13) -> $0.200 | H12: =SUM(G13) -> $0.000 | J12: =SUM(I13) -> $0.000 | L12: =SUM(K13) -> $0.000 | N12: =SUM(M13) -> 0.00 | P12: =SUM(O13) -> 0.00 | R12: =SUM(Q13) -> 0.00 | T12: =SUM(S13) -> 0.00 | V12: =SUM(U13) -> 0.00 | X12: =SUM(W13) -> 0.00 | Z12: =SUM(Y13) -> 0.00 | AB12: 0
B13: W&RR,Title XVI, Mid-Pacific Region | C13: $0.244 | E13: $0.200 | G13: $0.000 | I13: $0.000 | K13: $0.000 | AA13: 0
B14: San Diego Area Reclamation Program | D14: =SUM(C15) -> $2.455 | F14: =SUM(E15) -> $2.179 | H14: =SUM(G15) -> $0.000 | J14: =SUM(I15) -> $0.000 | L14: =SUM(K15) -> $0.000 | N14: =SUM(M15) -> 0.00 | P14: =SUM(O15) -> 0.00 | R14: =SUM(Q15) -> 0.00 | T14: =SUM(S15) -> 0.00 | V14: =SUM(U15) -> 0.00 | X14: =SUM(W15) -> 0.00 | Z14: =SUM(Y15) -> 0.00 | AB14: 0
B15: W&RR,Title XVI, Lower Colorado Region | C15: $2.455 | E15: $2.179 | G15: $0.000 | I15: $0.000 | K15: $0.000 | AA15: 0
B16: Calleguas Municipal Water District Recycling Project | D16: =SUM(C17) -> $0.000 | F16: =SUM(E17) -> $0.000 | H16: =SUM(G17) -> $0.000 | J16: =SUM(I17) -> $0.000 | L16: =SUM(K17) -> $0.000 | N16: =SUM(M17) -> 0.00 | P16: =SUM(O17) -> 0.00 | R16: =SUM(Q17) -> 0.00 | T16: =SUM(S17) -> 0.00 | V16: =SUM(U17) -> 0.00 | X16: =SUM(W17) -> 0.00 | Z16: =SUM(Y17) -> 0.00 | AB16: 0
B17: W&RR,Title XVI, Lower Colorado Region | C17: $0.000 | E17: $0.000 | G17: $0.000 | I17: $0.000 | K17: $0.000 | AA17: 0
B18: Long Beach Desalination Research and Development Project | D18: =SUM(C19) -> $0.494 | F18: =SUM(E19) -> $0.190 | H18: =SUM(G19) -> $0.000 | J18: =SUM(I19) -> $0.000 | L18: =SUM(K19) -> $0.000 | N18: =SUM(M19) -> 0.00 | P18: =SUM(O19) -> 0.00 | R18: =SUM(Q19) -> 0.00 | T18: =SUM(S19) -> 0.00 | V18: =SUM(U19) -> 0.00 | X18: =SUM(W19) -> 0.00 | Z18: =SUM(Y19) -> 0.00 | AB18: 0
B19: W&RR,Title XVI, Lower Colorado Region | C19: $0.494 | E19: $0.190 | G19: $0.000 | I19: $0.000 | K19: $0.000 | AA19: 0
B20: Long Beach Area Recycling Project | D20: =SUM(C21) -> $0.494 | F20: =SUM(E21) -> $0.474 | H20: =SUM(G21) -> $0.000 | J20: =SUM(I21) -> $0.000 | L20: =SUM(K21) -> $0.000 | N20: =SUM(M21) -> 0.00 | P20: =SUM(O21) -> 0.00 | R20: =SUM(Q21) -> 0.00 | T20: =SUM(S21) -> 0.00 | V20: =SUM(U21) -> 0.00 | X20: =SUM(W21) -> 0.00 | Z20: =SUM(Y21) -> 0.00 | AB20: 0
B21: W&RR,Title XVI, Lower Colorado Region | C21: $0.494 | E21: $0.474 | G21: $0.000 | I21: $0.000 | K21: $0.000 | AA21: 0
B22: Los Vaqueros Expansion Feasibility Study | D22: =SUM(C23) -> $1.294 | F22: =SUM(E23) -> $0.284 | H22: =SUM(G23) -> $1.250 | J22: =SUM(I23) -> $0.100 | L22: =SUM(K23) -> $0.100 | N22: =SUM(M23) -> 0.61 | P22: =SUM(O23) -> 0.12 | R22: =SUM(Q23) -> 0.30 | T22: =SUM(S23) -> 0.00 | V22: =SUM(U23:U24) -> 11.95 | X22: =SUM(W23:W24) -> 11.95 | Z22: =SUM(Y23:Y24) -> 0.00 | AB22: 0
B23: California Bay-Delta Restoration, P.L.108-361 | C23: $1.294 | E23: $0.284 | G23: $1.250 | I23: $0.100 | K23: $0.100 | M23: 0.61 | O23: 0.12 | Q23: 0.30 | U23: 0.00 | W23: 0.00 | AA23: 0
B24: W&RR | U24: 11.95 | W24: 11.95 | AA24: 0
B25: Upper San Joaquin River Basin Storage Investigation | D25: =SUM(C26) -> $1.528 | F25: =SUM(E26) -> $1.895 | H25: =SUM(G26) -> $1.250 | J25: =SUM(I26) -> $1.450 | L25: =SUM(K26) -> $1.000 | N25: =SUM(M26) -> 0.75 | P25: =SUM(O26) -> 0.10 | R25: =SUM(Q26) -> 0.08 | T25: =SUM(S26) -> 0.00 | V25: =SUM(U26) -> 0.00 | X25: =SUM(W26) -> 0.00 | Z25: =SUM(Y26) -> 0.00 | AB25: 0
B26: California Bay-Delta Restoration, P.L.108-361 | C26: $1.528 | E26: $1.895 | G26: $1.250 | I26: $1.450 | K26: $1.000 | M26: 0.75 | O26: 0.10 | Q26: 0.08 | U26: 0.00 | W26: 0.00 | AA26: 0
B27: Sites Reservoir | D27: =SUM(C28) -> $1.528 | F27: =SUM(E28) -> $0.569 | H27: =SUM(G28) -> $0.500 | J27: =SUM(I28) -> $0.100 | L27: =SUM(K28) -> $0.100 | N27: =SUM(M28) -> 0.50 | P27: =SUM(O28) -> 0.50 | R27: =SUM(Q28) -> 0.88 | T27: =SUM(S28) -> 0.00 | V27: =SUM(U28:U29) -> 13.70 | X27: =SUM(W28:W29) -> 13.70 | Z27: =SUM(Y28:Y29) -> 0.00 | AB27: 0
B28: California Bay-Delta Restoration, P.L.108-361 | C28: $1.528 | E28: $0.569 | G28: $0.500 | I28: $0.100 | K28: $0.100 | M28: 0.50 | O28: 0.50 | Q28: 0.88 | U28: 0.00 | W28: 0.00 | AA28: 0
B29: W&RR | U29: 13.70 | W29: 13.70 | AA29: 0
B30: Shasta Enlargement | D30: =SUM(C31) -> $1.750 | F30: =SUM(E31) -> $1.422 | H30: =SUM(G31) -> $4.750 | J30: =SUM(I31) -> $1.500 | L30: =SUM(K31) -> $0.500 | N30: =SUM(M31) -> 0.05 | P30: =SUM(O31) -> 0.08 | R30: =SUM(Q31) -> 0.08 | T30: =SUM(S31) -> 0.00 | V30: =SUM(U31) -> 0.00 | X30: =SUM(W31) -> 0.00 | Z30: =SUM(Y31) -> 0.00 | AB30: 0
B31: California Bay-Delta Restoration, P.L.108-361 | C31: $1.750 | E31: $1.422 | G31: $4.750 | I31: $1.500 | K31: $0.500 | M31: 0.05 | O31: 0.08 | Q31: 0.08 | U31: 0.00 | W31: 0.00 | AA31: 0
B32: San Luis Lowpoint Feasibility Study | D32: =SUM(C33) -> $0.400 | F32: =SUM(E33) -> $0.142 | H32: =SUM(G33) -> $0.100 | J32: =SUM(I33) -> $1.500 | L32: =SUM(K33) -> $2.000 | N32: =SUM(M33) -> 0.90 | P32: =SUM(O33) -> 1.49 | R32: =SUM(Q33) -> 0.26 | T32: =SUM(S33) -> 0.00 | V32: =SUM(U33:U34) -> 1.70 | X32: =SUM(W33:W34) -> 1.70 | Z32: =SUM(Y33:Y34) -> 0.00 | AB32: 0
B33: California Bay-Delta Restoration, P.L.108-361 | C33: $0.400 | E33: $0.142 | G33: $0.100 | I33: $1.500 | K33: $2.000 | M33: 0.90 | O33: 1.49 | Q33: 0.26 | U33: 0.00 | W33: 0.00 | AA33: 0
B34: W&RR | U34: 1.70 | W34: 1.70 | AA34: 0
B35: Address Degraded Bay-Delta Ecosystem2 | D35: =SUM(D36:D113) -> $185.198 | F35: =SUM(F36:F113) -> $145.763 | H35: =SUM(H36:H113) -> $173.431 | J35: =SUM(J36:J113) -> $164.194 | L35: =SUM(L36:L113) -> $158.303 | N35: =SUM(N36:N115) -> 156.70 | P35: =SUM(P36:P115) -> 152.88 | R35: =SUM(R36:R115) -> 174.45 | T35: =SUM(T36:T115) -> 357.26 | V35: =SUM(V36:V115) -> 375.60 | X35: =SUM(X36:X115) -> 375.60 | Y35: 0.00 | Z35: =SUM(Z36:Z115) -> 159.02 | AA35: 0 | AB35: =SUM(AB36:AB115) -> 158.78 | AD35: =SUM(AD36:AD116) -> 167.146
B36: Suisun Marsh Protection | D36: =SUM(C37) -> $1.392 | F36: =SUM(E37) -> $1.310 | H36: =SUM(G37) -> $1.423 | J36: =SUM(I37) -> $1.300 | L36: =SUM(K37) -> $1.300 | N36: =SUM(M37) -> 1.30 | P36: =SUM(O37) -> 1.19 | R36: =SUM(Q37) -> 1.30 | T36: =SUM(S37) -> 1.30 | V36: =SUM(U37) -> 1.20 | X36: =SUM(W37) -> 1.20 | Z36: =SUM(Y37) -> 1.20 | AB36: =SUM(AA37) -> 1.20 | AD36: =SUM(AC37) -> 1.20
B37: W&RR | C37: $1.392 | E37: $1.310 | G37: $1.423 | I37: $1.300 | K37: $1.300 | M37: 1.30 | O37: 1.19 | Q37: 1.30 | S37: 1.30 | U37: 1.20 | W37: 1.20 | Y37: 1.20 | AA37: 1.2 | AC37: 1.2
B38: Anadromous Fish Restoration Program | D38: =SUM(C39) -> $8.187 | F38: =SUM(E39) -> $5.700 | H38: =SUM(G39) -> $10.065 | J38: =SUM(I39) -> $11.379 | L38: =SUM(K39) -> $8.441 | N38: =SUM(M39) -> 8.43 | P38: =SUM(O39) -> 4.87 | R38: =SUM(Q39) -> 9.76 | T38: =SUM(S39) -> 12.63 | V38: =SUM(U39) -> 14.28 | X38: =SUM(W39) -> 14.28 | Z38: =SUM(Y39) -> 0.00 | AB38: 0 | AD38: =SUM(AC39) -> 8.727
B39: RF, 3406(b)(1) | C39: $8.187 | E39: $5.700 | G39: $10.065 | I39: $11.379 | K39: $8.441 | M39: 8.43 | O39: 4.87 | Q39: 9.76 | S39: 12.63 | U39: 14.28 | W39: 14.28 | AC39: 8.727
B40: Other CVP Impacts | D40: =SUM(C41) -> $1.500 | F40: =SUM(E41) -> $1.500 | H40: =SUM(G41) -> $1.500 | J40: =SUM(I41) -> $1.700 | L40: =SUM(K41) -> $1.500 | N40: =SUM(M41) -> 1.50 | P40: =SUM(O41) -> 1.49 | R40: =SUM(Q41) -> 1.50 | T40: =SUM(S41) -> 1.00 | V40: =SUM(U41) -> 1.00 | X40: =SUM(W41) -> 1.00 | Z40: =SUM(Y41) -> 1.50 | AB40: 1.5 | AD40: =SUM(AC41) -> 1.5
B41: RF, 3406(b)(1)other | C41: $1.500 | E41: $1.500 | G41: $1.500 | I41: $1.700 | K41: $1.500 | M41: 1.50 | O41: 1.49 | Q41: 1.50 | S41: 1.00 | U41: 1.00 | W41: 1.00 | Y41: 1.50 | AA41: 1.5 | AC41: 1.5
B42: Anadromous Fish Screen Program | D42: =SUM(C43:C43) -> $6.049 | F42: =SUM(E43:E43) -> $8.050 | H42: =SUM(G43:G43) -> $5.070 | J42: =SUM(I43:I43) -> $4.150 | L42: =SUM(K43:K43) -> $2.500 | N42: =SUM(M43:M43) -> 2.50 | P42: =SUM(O43:O43) -> 2.48 | R42: =SUM(Q43:Q43) -> 1.20 | T42: =SUM(S43:S43) -> 1.20 | V42: =SUM(U43:U44) -> 6.20 | X42: =SUM(W43:W44) -> 6.20 | Z42: =SUM(Y43:Y44) -> 0.00 | AB42: 0 | AD42: =SUM(AC43:AC44) -> 1.2
B43: RF, 3406(b)(21) | C43: $6.049 | E43: $8.050 | G43: $5.070 | I43: $4.150 | K43: $2.500 | M43: 2.50 | O43: 2.48 | Q43: 1.20 | S43: 1.20 | U43: 1.20 | W43: 1.20 | AC43: 1.2
B44: W&RR | U44: 5.00 | W44: 5.00
B45: Water Acquisition / Conveyance | D45: =SUM(C46) -> $19.850 | F45: =SUM(E46) -> $20.849 | H45: =SUM(G46) -> $21.406 | J45: =SUM(I46) -> $24.655 | L45: =SUM(K46) -> $22.687 | N45: =SUM(M46) -> 22.64 | P45: =SUM(O46) -> 18.18 | R45: =SUM(Q46) -> 27.80 | T45: =SUM(S46) -> 27.97 | V45: =SUM(U46:U47) -> 31.84 | X45: =SUM(W46:W47) -> 31.84 | Z45: =SUM(Y46:Y47) -> 32.68 | AB45: 37.921 | AD45: =SUM(AC46:AC47) -> 41.679
B46: RF, 3406(b)(3), 3406(d)(2) | C46: $19.850 | E46: $20.849 | G46: $21.406 | I46: $24.655 | K46: $22.687 | M46: 22.64 | O46: 18.18 | Q46: 27.80 | S46: 27.97 | U46: 28.84 | W46: 28.84 | Y46: 20.88 | AA46: 29.119 | AC46: 33.879
B47: W&RR | U47: 3.00 | W47: 3.00 | Y47: 11.80 | AA47: 8.802 | AC47: 7.8
B48: Dedicated Project Yield | D48: =SUM(C49) -> $0.800 | F48: =SUM(E49) -> $0.600 | H48: =SUM(G49) -> $0.600 | J48: =SUM(I49) -> $0.700 | L48: =SUM(K49) -> $0.400 | N48: =SUM(M49) -> 0.40 | P48: =SUM(O49) -> 0.50 | R48: =SUM(Q49) -> 0.70 | T48: =SUM(S49) -> 0.70 | V48: =SUM(U49) -> 0.70 | X48: =SUM(W49) -> 0.70 | Z48: =SUM(Y49) -> 0.00 | AB48: 0
B49: RF, 3406(b)(2) | C49: $0.800 | E49: $0.600 | G49: $0.600 | I49: $0.700 | K49: $0.400 | M49: 0.40 | O49: 0.50 | Q49: 0.70 | S49: 0.70 | U49: 0.70 | W49: 0.70
B50: Clear Creek Restoration | D50: =SUM(C51:C52) -> $0.905 | F50: =SUM(E51:E52) -> $0.555 | H50: =SUM(G51:G52) -> $0.800 | J50: =SUM(I51:I52) -> $1.080 | L50: =SUM(K51:K52) -> $0.980 | N50: =SUM(M51:M52) -> 0.98 | P50: =SUM(O51:O52) -> 3.95 | R50: =SUM(Q51:Q52) -> 0.73 | T50: =SUM(S51:S52) -> 0.73 | V50: =SUM(U51:U52) -> 0.73 | X50: =SUM(W51:W52) -> 0.73 | Z50: =SUM(Y51:Y52) -> 0.05 | AB50: 0 | AD50: =SUM(AC51:AC52) -> 0.71
B51: W&RR | C51: $0.105 | E51: $0.000 | G51: $0.000 | I51: $0.280 | K51: $0.280 | M51: 0.28 | O51: 0.28 | Q51: 0.08 | S51: 0.08 | U51: 0.08 | W51: 0.08 | Y51: 0.05 | AA51: 0 | AC51: 0.06
B52: RF, 3406(b)(12) | C52: $0.800 | E52: $0.555 | G52: $0.800 | I52: $0.800 | K52: $0.700 | M52: 0.70 | O52: 3.67 | Q52: 0.65 | S52: 0.65 | U52: 0.65 | W52: 0.65 | AC52: 0.65
B53: Spawning Gravel/Riparian Habitat | D53: =SUM(C54) -> $1.000 | F53: =SUM(E54) -> $0.903 | H53: =SUM(G54) -> $1.200 | J53: =SUM(I54) -> $1.690 | L53: =SUM(K54) -> $3.400 | N53: =SUM(M54) -> 3.39 | P53: =SUM(O54) -> 4.97 | R53: =SUM(Q54) -> 4.50 | T53: =SUM(S54) -> 2.00 | V53: =SUM(U54) -> 2.00 | X53: =SUM(W54) -> 2.00 | Z53: =SUM(Y54) -> 0.00 | AB53: 0 | AD53: =SUM(AC54) -> 2.5
B54: RF, 3406(b)(13) | C54: $1.000 | E54: $0.903 | G54: $1.200 | I54: $1.690 | K54: $3.400 | M54: 3.39 | O54: 4.97 | Q54: 4.50 | S54: 2.00 | U54: 2.00 | W54: 2.00 | AC54: 2.5
B55: Bay-Delta Conservation Plan | D55: =SUM(C56) -> $7.000 | F55: =SUM(E56) -> $5.686 | H55: =SUM(G56) -> $3.500 | J55: =SUM(I56) -> $4.000 | L55: =SUM(K56) -> $4.000 | N55: =SUM(M56) -> 3.00 | P55: =SUM(O56) -> 2.98 | R55: =SUM(Q56) -> 2.25 | T55: =SUM(S56) -> 2.05 | V55: =SUM(U56) -> 0.00 | X55: =SUM(W56) -> 0.00 | Z55: =SUM(Y56) -> 0.00 | AB55: 0.25 | AD55: =SUM(AC56) -> 0.25
B56: California Bay-Delta Restoration, P.L.108-361 | C56: $7.000 | E56: $5.686 | G56: $3.500 | I56: $4.000 | K56: $4.000 | M56: 3.00 | O56: 2.98 | Q56: 2.25 | S56: 2.05 | U56: 0.00 | W56: 0.00 | AA56: 0.25 | AC56: 0.25
B57: Red Bluff Diversion Dam, Fish Passage3 | D57: =SUM(C58) -> $34.092 | F57: =SUM(E58) -> $2.788 | H57: =SUM(G58) -> $1.914 | J57: =SUM(I58) -> $0.849 | L57: =SUM(K58) -> $0.000 | N57: =SUM(M58) -> 0.00 | P57: =SUM(O58) -> 0.39 | R57: =SUM(Q58) -> 0.40 | T57: =SUM(S58) -> 0.40 | V57: =SUM(U58) -> 0.00 | X57: =SUM(W58) -> 0.00 | Z57: =SUM(Y58) -> 0.00 | AB57: 0
B58: W&RR | C58: $34.092 | E58: $2.788 | G58: $1.914 | I58: $0.849 | K58: $0.000 | O58: 0.39 | Q58: 0.40 | S58: 0.40 | U58: 0.00 | W58: 0.00
B59: San Joaquin River Restoration Program (SJRRP)/San Joaquin River Basin Study3 | D59: =SUM(C60:C62) -> $34.969 | F59: =SUM(E60:E62) -> $17.530 | H59: =SUM(G60:G62) -> $28.000 | J59: =SUM(I60:I62) -> $36.380 | L59: =SUM(K60:K62) -> $37.000 | N59: =SUM(M60:M63) -> 36.93 | P59: =SUM(O60:O63) -> 37.74 | R59: =SUM(Q60:Q63) -> 37.00 | T59: =SUM(S60:S63) -> 237.62 | V59: =SUM(U60:U63) -> 244.01 | X59: =SUM(W60:W63) -> 244.01 | Z59: =SUM(Y60:Y63) -> 36.10 | AB59: 36.1 | AD59: =SUM(AC60:AC63) -> 36.1
B60: SJRR Settlement Act, Title X of P.L. 111-11 (Mandatory Funds) | C60: $24.077 | E60: $0.000 | G60: $0.000 | I60: $0.000 | K60: $0.000 | S60: 207.36 | U60: 7.75 | W60: 7.75 | Y60: 13.60 | AA60: 13.6 | AC60: 13.6
B61: RF, 3406(c) | C61: $2.000 | E61: $2.000 | G61: $2.000 | I61: $2.000 | K61: $2.000 | M61: 2.00 | O61: 1.99 | Q61: 2.00 | S61: 2.00 | U61: 2.00 | W61: 2.00 | Y61: 2.00 | AA61: 2 | AC61: 2
B62: W&RR | C62: $8.892 | E62: $15.530 | G62: $26.000 | I62: $34.380 | K62: $35.000 | M62: 34.93 | O62: 35.75 | Q62: 35.00 | S62: 28.26 | U62: 234.26 | W62: 234.26 | Y62: 20.50 | AA62: 20.5 | AC62: 20.5
B63: San Joaquin River Restoration Program(Discretionary Funding)
B64: Comp Assess & Monitoring Program | D64: =SUM(C65) -> $1.600 | F64: =SUM(E65) -> $1.700 | H64: =SUM(G65) -> $2.200 | J64: =SUM(I65) -> $2.306 | L64: =SUM(K65) -> $1.000 | N64: =SUM(M65) -> 1.00 | P64: =SUM(O65) -> 5.96 | R64: =SUM(Q65) -> 4.00 | T64: =SUM(S65) -> 3.00 | V64: =SUM(U65) -> 3.00 | X64: =SUM(W65) -> 3.00 | Z64: =SUM(Y65) -> 0.00 | AB64: 0
B65: RF, 3406(b)(16) | C65: $1.600 | E65: $1.700 | G65: $2.200 | I65: $2.306 | K65: $1.000 | M65: 1.00 | O65: 5.96 | Q65: 4.00 | S65: 3.00 | U65: 3.00 | W65: 3.00
B66: Tracy (Jones) Pumping Plant Mitigation Program | D66: =SUM(C67:C67) -> $1.452 | F66: =SUM(E67:E67) -> $1.238 | H66: =SUM(G67:G67) -> $1.278 | J66: =SUM(I67:I67) -> $1.236 | L66: =SUM(K67:K67) -> $1.236 | N66: =SUM(M67:M67) -> 1.24 | P66: =SUM(O67:O67) -> 1.18 | R66: =SUM(Q67:Q67) -> 1.14 | T66: =SUM(S67:S67) -> 1.14 | V66: =SUM(U67:U67) -> 1.15 | X66: =SUM(W67:W67) -> 1.15 | Z66: =SUM(Y67:Y67) -> 1.16 | AB66: 1.15 | AD66: =SUM(AC67:AC67) -> 1.1
B67: W&RR | C67: $1.452 | E67: $1.238 | G67: $1.278 | I67: $1.236 | K67: $1.236 | M67: 1.24 | O67: 1.18 | Q67: 1.14 | S67: 1.14 | U67: 1.15 | W67: 1.15 | Y67: 1.16 | AA67: 1.15 | AC67: 1.1
B68: Yolo Bypass Implementation | D68: =SUM(C69) -> $0.000 | F68: =SUM(E69) -> $0.948 | H68: =SUM(G69:G70) -> $1.288 | J68: =SUM(I69:I70) -> $2.788 | L68: =SUM(K69:K70) -> $2.788 | N68: =SUM(M69:M70) -> 4.88 | P68: =SUM(O69:O70) -> 7.95 | R68: =SUM(Q69:Q70) -> 1.59 | T68: =SUM(S69:S70) -> 7.69 | V68: =SUM(U69:U70) -> 7.69 | X68: =SUM(W69:W70) -> 7.69 | Z68: =SUM(Y69:Y70) -> 7.40 | AB68: 7.4 | AD68: =SUM(AC69:AC70) -> 7.4
B69: California Bay-Delta Restoration, P.L.108-361 | C69: $0.000 | E69: $0.948 | G69: $1.000 | I69: $2.500 | K69: $2.500 | M69: 4.60 | O69: 4.57 | Q69: 1.30 | S69: 7.40 | U69: 7.40 | W69: 7.40 | Y69: 7.40 | AA69: 7.4 | AC69: 7.4
B70: W&RR | C70: $0.000 | E70: $0.000 | G70: $0.288 | I70: $0.288 | K70: $0.288 | M70: 0.28 | O70: 3.38 | Q70: 0.29 | S70: 0.29 | U70: 0.29 | W70: 0.29 | AA70: 0
B71: Frank's Tract Feasibility Study | D71: =SUM(C72) -> $0.400 | F71: =SUM(E72) -> $0.095 | H71: =SUM(G72) -> $0.100 | J71: =SUM(I72) -> $0.000 | L71: =SUM(K72) -> $0.000 | N71: =SUM(M72) -> 0.00 | P71: =SUM(O72) -> 0.00 | R71: =SUM(Q72) -> 0.00 | T71: =SUM(S72) -> 0.00 | V71: =SUM(U72) -> 0.00 | X71: =SUM(W72) -> 0.00 | Z71: =SUM(Y72) -> 0.00 | AB71: 0
B72: California Bay-Delta Restoration, P.L.108-361 | C72: $0.400 | E72: $0.095 | G72: $0.100 | I72: $0.000 | K72: $0.000 | U72: 0.00 | W72: 0.00
B73: South Delta Improvement Plan Coordination | D73: =SUM(C74:C74) -> $0.300 | F73: =SUM(E74:E74) -> $0.236 | H73: =SUM(G74:G74) -> $0.000 | J73: =SUM(I74:I74) -> $0.000 | L73: =SUM(K74:K74) -> $0.000 | N73: =SUM(M74:M74) -> 0.00 | P73: =SUM(O74:O74) -> 0.00 | R73: =SUM(Q74:Q74) -> 0.00 | T73: =SUM(S74:S74) -> 0.02 | V73: =SUM(U74:U74) -> 0.00 | X73: =SUM(W74:W74) -> 0.00 | Z73: =SUM(Y74:Y74) -> 0.00 | AB73: 0
B74: California Bay-Delta Restoration, P.L.108-361 | C74: $0.300 | E74: $0.236 | G74: $0.000 | I74: $0.000 | K74: $0.000 | S74: 0.02 | U74: 0.00 | W74: 0.00
B75: Habitat and Facility Improvement | D75: =SUM(C76) -> $5.051 | F75: =SUM(E76) -> $5.402 | H75: =SUM(G76) -> $5.700 | J75: =SUM(I76) -> $5.700 | L75: =SUM(K76) -> $5.700 | N75: =SUM(M76) -> 4.00 | P75: =SUM(O76) -> 3.97 | R75: =SUM(Q76) -> 5.00 | T75: =SUM(S76) -> 4.00 | V75: =SUM(U76) -> 4.05 | X75: =SUM(W76) -> 4.05 | Z75: =Y76+Y77+Y78 -> 21.24 | AB75: 17.689 | AD75: =AC76+AC77+AC78 -> 7.8
B76: California Bay-Delta Restoration, P.L.108-361 | C76: $5.051 | E76: $5.402 | G76: $5.700 | I76: $5.700 | K76: $5.700 | M76: 4.00 | O76: 3.97 | Q76: 5.00 | S76: 4.00 | U76: 4.05 | W76: 4.05 | Y76: 0.25 | AA76: 0 | AC76: 0
B77: RF | Y77: 12.99 | AA77: 10.889 | AC77: 0
B78: W&RR | Y78: 8.00 | AA78: 6.8 | AC78: 7.8
B79: Intervention | D79: =SUM(C80) -> $5.051 | F79: =SUM(E80) -> $5.402 | H79: =SUM(G80) -> $5.700 | J79: =SUM(I80) -> $5.700 | L79: =SUM(K80) -> $5.700 | N79: =SUM(M80) -> 4.00 | P79: =SUM(O80) -> 3.97 | R79: =SUM(Q80) -> 5.00 | T79: =SUM(S80) -> 4.00 | V79: =SUM(U80) -> 0.00 | X79: =SUM(W80) -> 0.00 | Z79: =SUM(Y80) -> 1.00 | AB79: 2 | AD79: =SUM(AC80) -> 3
B80: W&RR | C80: $5.051 | E80: $5.402 | G80: $5.700 | I80: $5.700 | K80: $5.700 | M80: 4.00 | O80: 3.97 | Q80: 5.00 | S80: 4.00 | U80: 0.00 | Y80: 1.00 | AA80: 2 | AC80: 3
B81: Status and Trend Monitoring and Synthesis | D81: =SUM(C82:C84) -> $5.508 | F81: =SUM(E82:E84) -> $7.047 | H81: =SUM(G82:G84) -> $5.300 | J81: =SUM(I82:I84) -> $6.488 | L81: =SUM(K82:K84) -> $7.188 | N81: =SUM(M82:M84) -> 7.47 | P81: =SUM(O82:O84) -> 7.14 | R81: =SUM(Q82:Q84) -> 10.61 | T81: =SUM(S82:S84) -> 7.09 | V81: =SUM(U82:U84) -> 15.82 | X81: =SUM(W82:W84) -> 15.82 | Z81: =SUM(Y82:Y84) -> 12.89 | AB81: 13.743 | AD81: =SUM(AC82:AC84) -> 13.995
B82: California Bay-Delta Restoration, P.L. 108-361 | C82: $2.408 | E82: $1.306 | G82: $0.000 | I82: $1.188 | K82: $1.188 | M82: 1.19 | O82: 1.18 | Q82: 1.09 | S82: 1.09 | U82: 6.00 | W82: 6.00 | Y82: 6.00 | AA82: 6 | AC82: 6
B83: RF | Y83: 3.70 | AA83: 2.75 | AC83: 3
B84: W&RR | C84: $3.100 | E84: $5.741 | G84: $5.300 | I84: $5.300 | K84: $6.000 | M84: 6.28 | O84: 5.96 | Q84: 9.52 | S84: 6.00 | U84: 9.82 | W84: 9.82 | Y84: 3.19 | AA84: 4.993 | AC84: 4.995
B85: Special Studies | D85: =SUM(C86:C88) -> $5.508 | F85: =SUM(E86:E88) -> $7.047 | H85: =SUM(G86:G88) -> $5.300 | J85: =SUM(I86:I88) -> $6.488 | L85: =SUM(K86:K88) -> $7.188 | N85: =SUM(M86:M88) -> 7.47 | P85: =SUM(O86:O88) -> 7.14 | R85: =SUM(Q86:Q88) -> 10.61 | T85: =SUM(S86:S88) -> 7.09 | V85: =SUM(U86:U88) -> 5.00 | X85: =SUM(W86:W88) -> 5.00 | Z85: =SUM(Y86:Y88) -> 18.50 | AB85: 7.9 | AD85: =SUM(AC86:AC88) -> 8.8
B86: California Bay-Delta Restoration, P.L. 108-361 | C86: $2.408 | E86: $1.306 | G86: $0.000 | I86: $1.188 | K86: $1.188 | M86: 1.19 | O86: 1.18 | Q86: 1.09 | S86: 1.09 | U86: 4.00 | W86: 4.00 | Y86: 4.00 | AA86: 4 | AC86: 4
B87: RF | Y87: 2.50 | AA87: 0 | AC87: 0.7
B88: W&RR | C88: $3.100 | E88: $5.741 | G88: $5.300 | I88: $5.300 | K88: $6.000 | M88: 6.28 | O88: 5.96 | Q88: 9.52 | S88: 6.00 | U88: 1.00 | W88: 1.00 | Y88: 12.00 | AA88: 3.9 | AC88: 4.1
B89: Real Time Operations | D89: =SUM(C90:C92) -> $5.508 | F89: =SUM(E90:E92) -> $7.047 | H89: =SUM(G90:G92) -> $5.300 | J89: =SUM(I90:I92) -> $6.488 | L89: =SUM(K90:K92) -> $7.188 | N89: =SUM(M90:M92) -> 7.47 | P89: =SUM(O90:O92) -> 7.14 | R89: =SUM(Q90:Q92) -> 10.61 | T89: =SUM(S90:S92) -> 7.09 | V89: =SUM(U90:U92) -> 30.66 | X89: =SUM(W90:W92) -> 30.66 | Z89: =SUM(Y90:Y92) -> 21.13 | AB89: 27.015 | AD89: =SUM(AC90:AC92) -> 26.265
B90: California Bay-Delta Restoration, P.L. 108-361 | C90: $2.408 | E90: $1.306 | G90: $0.000 | I90: $1.188 | K90: $1.188 | M90: 1.19 | O90: 1.18 | Q90: 1.09 | S90: 1.09 | U90: 6.10 | W90: 6.10 | Y90: 8.70 | AA90: 7.25 | AC90: 7.25
B91: RF | Y91: 0.70 | AA91: 0.75 | AC91: 0
B92: W&RR | C92: $3.100 | E92: $5.741 | G92: $5.300 | I92: $5.300 | K92: $6.000 | M92: 6.28 | O92: 5.96 | Q92: 9.52 | S92: 6.00 | U92: 24.56 | W92: 24.56 | Y92: 11.73 | AA92: 19.015 | AC92: 19.015
B93: Delta Mendota Canal/Intertie | D93: =SUM(C94:C94) -> $3.100 | F93: =SUM(E94:E94) -> $5.741 | H93: =SUM(G94:G94) -> $5.300 | J93: =SUM(I94:I94) -> $5.300 | L93: =SUM(K94:K94) -> $6.000 | N93: =SUM(M94:M94) -> 6.28 | P93: =SUM(O94:O94) -> 5.96 | R93: =SUM(Q94:Q94) -> 9.52 | T93: =SUM(S94:S94) -> 6.00 | V93: =SUM(U94:U94) -> 3.01 | X93: =SUM(W94:W94) -> 3.01 | Z93: =SUM(Y94:Y94) -> 0.01 | AB93: 0.005 | AD93: =SUM(AC94:AC95) -> 0.01
B94: W&RR | C94: $3.100 | E94: $5.741 | G94: $5.300 | I94: $5.300 | K94: $6.000 | M94: 6.28 | O94: 5.96 | Q94: 9.52 | S94: 6.00 | U94: 3.01 | W94: 3.01 | Y94: 0.01 | AA94: 0.005 | AC94: 0
B95: Interagency Ecological Program (IEP) | D95: =SUM(C96:C97) -> $5.508 | F95: =SUM(E96:E97) -> $7.047 | H95: =SUM(G96:G97) -> $5.300 | J95: =SUM(I96:I97) -> $6.488 | L95: =SUM(K96:K97) -> $7.188 | N95: =SUM(M96:M97) -> 7.47 | P95: =SUM(O96:O97) -> 7.14 | R95: =SUM(Q96:Q97) -> 10.61 | T95: =SUM(S96:S97) -> 7.09 | V95: =SUM(U96:U97) -> 0.00 | X95: =SUM(W96:W97) -> 0.00 | Z95: =SUM(Y96:Y97) -> 0.00 | AB95: 0 | AC95: 0.01
B96: W&RR | C96: $2.408 | E96: $1.306 | G96: $0.000 | I96: $1.188 | K96: $1.188 | M96: 1.19 | O96: 1.18 | Q96: 1.09 | S96: 1.09 | U96: 0.00 | W96: 0.00 | AA96: 0
B97: California Bay-Delta Restoration, P.L. 108-361 | C97: $3.100 | E97: $5.741 | G97: $5.300 | I97: $5.300 | K97: $6.000 | M97: 6.28 | O97: 5.96 | Q97: 9.52 | S97: 6.00 | U97: 0.00 | W97: 0.00 | AA97: 0
B98: CALFED Science Activities (POD) | D98: =SUM(C99) -> $5.300 | F98: =SUM(E99) -> $5.212 | H98: =SUM(G99) -> $5.350 | J98: =SUM(I99) -> $5.350 | L98: =SUM(K99) -> $5.350 | N98: =SUM(M99) -> 6.00 | P98: =SUM(O99) -> 5.31 | R98: =SUM(Q99) -> 5.35 | T98: =SUM(S99) -> 5.35 | V98: =SUM(U99) -> 0.00 | X98: =SUM(W99) -> 0.00 | Z98: =SUM(Y99) -> 0.00 | AB98: 0
B99: California Bay-Delta Restoration, P.L.108-361 | C99: $5.300 | E99: $5.212 | G99: $5.350 | I99: $5.350 | K99: $5.350 | M99: 6.00 | O99: 5.31 | Q99: 5.35 | S99: 5.35 | U99: 0.00 | W99: 0.00 | AA99: 0
B100: Federal Science Task Force Studies | D100: =SUM(C101) -> $5.051 | F100: =SUM(E101) -> $5.402 | H100: =SUM(G101) -> $5.700 | J100: =SUM(I101) -> $5.700 | L100: =SUM(K101) -> $5.700 | N100: =SUM(M101) -> 4.00 | P100: =SUM(O101) -> 3.97 | R100: =SUM(Q101) -> 5.00 | T100: =SUM(S101) -> 4.00 | V100: =SUM(U101) -> 0.00 | X100: =SUM(W101) -> 0.00 | Z100: =SUM(Y101) -> 0.00 | AB100: 0
B101: California Bay-Delta Restoration, P.L.108-361 | C101: $5.051 | E101: $5.402 | G101: $5.700 | I101: $5.700 | K101: $5.700 | M101: 4.00 | O101: 3.97 | Q101: 5.00 | S101: 4.00 | U101: 0.00 | W101: 0.00 | AA101: 0
B102: Drainage Management Program | D102: =SUM(C104) -> $14.065 | F102: =SUM(E104) -> $15.670 | H102: =SUM(G104) -> $39.085 | J102: =SUM(I104) -> $11.727 | L102: =SUM(K104) -> $9.267 | N102: =SUM(M104) -> 9.25 | P102: =SUM(O104) -> 1.76 | R102: =SUM(Q104) -> 2.17 | T102: =SUM(S104) -> 1.86 | V102: =SUM(U104) -> 1.76 | X102: =SUM(W104) -> 1.76 | Z102: =Y103+Y104 -> 2.66 | AB102: 1.66
B103: California Bay-Delta Restoration, P.L. 108-361 | Y103: 1.00 | AA103: 0 | AD103: =AC104+AC105 -> 1.66
B104: W&RR | C104: $14.065 | E104: $15.670 | G104: $39.085 | I104: $11.727 | K104: $9.267 | M104: 9.25 | O104: 1.76 | Q104: 2.17 | S104: 1.86 | U104: 1.76 | W104: 1.76 | Y104: 1.66 | AA104: 1.66
B105: San Joaquin Basin Action Plan | D105: =SUM(C106:C107) -> $0.503 | F105: =SUM(E106:E107) -> $0.103 | H105: =SUM(G106:G107) -> $0.000 | J105: =SUM(I106:I107) -> $0.000 | L105: =SUM(K106:K107) -> $0.000 | N105: =SUM(M106:M107) -> 0.00 | P105: =SUM(O106:O107) -> 0.00 | R105: =SUM(Q106:Q107) -> 0.00 | T105: =SUM(S106:S107) -> 0.00 | V105: =SUM(U106:U107) -> 0.00 | X105: =SUM(W106:W107) -> 0.00 | Z105: =SUM(Y106:Y107) -> 0.00 | AB105: 0 | AC105: 1.66
B106: W&RR | C106: $0.303 | E106: $0.047 | G106: $0.000 | I106: $0.000 | K106: $0.000 | U106: 0.00 | W106: 0.00 | AA106: 0
B107: RF, 3406(d)(5) | C107: $0.200 | E107: $0.056 | G107: $0.000 | I107: $0.000 | K107: $0.000 | U107: 0.00 | W107: 0.00 | AA107: 0
B108: Land Retirement | D108: =SUM(C109:C110) -> $0.549 | F108: =SUM(E109:E110) -> $0.500 | H108: =SUM(G109:G110) -> $0.552 | J108: =SUM(I109:I110) -> $0.052 | L108: =SUM(K109:K110) -> $0.052 | N108: =SUM(M109:M110) -> 0.05 | P108: =SUM(O109:O110) -> 0.05 | R108: =SUM(Q109:Q110) -> 0.05 | T108: =SUM(S109:S110) -> 0.00 | V108: =SUM(U109:U110) -> 0.00 | X108: =SUM(W109:W110) -> 0.00 | Z108: =SUM(Y109:Y110) -> 0.00 | AB108: 0
B109: W&RR | C109: $0.049 | E109: $0.000 | G109: $0.052 | I109: $0.052 | K109: $0.052 | M109: 0.05 | O109: 0.05 | Q109: 0.05 | S109: 0.00 | U109: 0.00 | W109: 0.00 | AA109: 0
B110: RF, 3408(h) | C110: $0.500 | E110: $0.500 | G110: $0.500 | I110: $0.000 | K110: $0.000 | U110: 0.00 | W110: 0.00 | AA110: 0
B111: San Joaquin River Salinity Management | D111: =SUM(C112) -> $4.250 | F111: =SUM(E112) -> $3.791 | H111: =SUM(G112) -> $3.800 | J111: =SUM(I112) -> $3.800 | L111: =SUM(K112) -> $3.800 | N111: =SUM(M112) -> 3.30 | P111: =SUM(O112) -> 3.77 | R111: =SUM(Q112) -> 3.80 | T111: =SUM(S112) -> 2.00 | V111: =SUM(U112) -> 0.00 | X111: =SUM(W112) -> 0.00 | Z111: =SUM(Y112) -> 0.00 | AB111: 1
B112: California Bay-Delta Restoration, P.L.108-361 | C112: $4.250 | E112: $3.791 | G112: $3.800 | I112: $3.800 | K112: $3.800 | M112: 3.30 | O112: 3.77 | Q112: 3.80 | S112: 2.00 | U112: 0.00 | W112: 0.00 | AA112: 1 | AD112: =SUM(AC113) -> 1
B113: Program to Meet Standards (PTMS) | D113: =SUM(C114) -> $0.750 | F113: =SUM(E114) -> $0.664 | H113: =SUM(G114) -> $0.700 | J113: =SUM(I114) -> $0.700 | L113: =SUM(K114) -> $0.750 | N113: =SUM(M114) -> 0.75 | P113: =SUM(O114) -> 0.74 | R113: =SUM(Q114) -> 0.75 | T113: =SUM(S114) -> 0.75 | V113: =SUM(U114) -> 0.00 | X113: =SUM(W114) -> 0.00 | Z113: =SUM(Y114) -> 0.00 | AB113: 0.75 | AC113: 1
B114: California Bay-Delta Restoration, P.L.108-361 | C114: $0.750 | E114: $0.664 | G114: $0.700 | I114: $0.700 | K114: $0.750 | M114: 0.75 | O114: 0.74 | Q114: 0.75 | S114: 0.75 | U114: 0.00 | W114: 0.00 | AA114: 0.75 | AD114: =SUM(AC115) -> 0.75
B115: Battle Creek Salmon And Steelhead Restoration Project | N115: =M116 -> 1.00 | P115: =O116 -> 0.99 | R115: =Q116 -> 1.50 | T115: =S116 -> 1.50 | V115: =U116 -> 1.50 | X115: =W116 -> 1.50 | Z115: =Y116 -> 1.50 | AB115: 1.5 | AC115: 0.75
B116: California Bay-Delta Restoration, P.L.108-361 | M116: 1.00 | O116: 0.99 | Q116: 1.50 | S116: 1.50 | U116: 1.50 | W116: 1.50 | Y116: 1.50 | AA116: 1.5 | AD116: =AC117 -> 1.5
B117: Drought & Floodplain Management | D117: =SUM(D118) -> $0.000 | F117: =SUM(F118) -> $0.000 | H117: =SUM(H118) -> $0.000 | J117: =SUM(J118) -> $0.000 | L117: =SUM(L118) -> $0.000 | N117: =SUM(N118) -> 0.00 | P117: =SUM(P118) -> 0.00 | R117: =SUM(R118) -> 0.00 | T117: =SUM(T118) -> 0.00 | V117: =SUM(V118) -> 0.00 | X117: =SUM(X118) -> 0.00 | Z117: =SUM(Z118) -> 0.00 | AB117: 0 | AC117: 1.5
B118: Bureau Wide Drought | D118: $0.000 | F118: $0.000 | H118: $0.000 | J118: $0.000 | L118: $0.000 | N118: 0.00 | P118: 0.00
B119: W&RR | C119: $0.000 | E119: $0.000 | G119: $0.000 | I119: $0.000 | K119: $0.000
B120: Total | D120: =SUM(D5,D8,D35,D117) -> $204.885 | F120: =SUM(F5,F8,F35,F117) -> $158.608 | H120: =SUM(H5,H8,H35,H117) -> $189.981 | J120: =SUM(J5,J8,J35,J117) -> $173.844 | L120: =SUM(L5,L8,L35,L117) -> $167.203 | N120: =SUM(N5,N8,N35,N117) -> 164.71 | P120: =SUM(P5,P8,P35,P117) -> 160.34 | R120: =SUM(R5,R8,R35,R117) -> 180.00 | T120: =SUM(T5,T8,T35,T117) -> 361.21 | V120: =SUM(V5,V8,V35,V117) -> 409.40 | X120: =SUM(X5,X8,X35,X117) -> 409.40 | Z120: =SUM(Z5,Z8,Z35,Z117) -> 163.17 | AB120: =SUM(AB5,AB8,AB35,AB117) -> 164.96 | AD120: =SUM(AD5,AD8,AD35,AD117) -> 173.33
B121: Note: The Water and Related Resources Account (W&RR) often receives additional funding for on-going work in Congressional appropriations that are above the President's Request, including funds that are subject to WIIN legislation.

Sheet USACE 12-20
B2: U.S. Army Corps of Engineers Bay-Delta Totals Fiscal Years 2012 - 2025 (in millions of dollars)
B3: Interim Federal Action Plan (IFAP) Functional Areas / Programs and Projects | C3: FY 2012 | E3: FY 2013 | G3: FY 2014 | I3: FY 2015 | K3: FY 2016 | M3: FY 2017 | O3: FY 2018 | Q3: FY 2019 | S3: FY 2020 | U3: FY 2021 | W3: FY 2022 | Y3: FY 2023 | AA3: FY 2024 | AC3: FY 2025
C4: sub | D4: total | E4: sub | F4: total | G4: sub | H4: total | I4: sub | J4: total | K4: sub | L4: total | M4: sub | N4: total | O4: sub | P4: total | Q4: sub | R4: total | S4: sub | T4: total | U4: sub | V4: total | W4: sub | X4: total | Y4: sub | Z4: total | AA4: sub | AB4: total | AC4: sub | AD4: total
B5: Renewed Federal State Partnership | D5: =SUM(C6:C6) -> $0.207 | F5: =SUM(E6:E6) -> $0.120 | H5: =SUM(G6:G6) -> $0.115 | J5: =SUM(I6:I6) -> $0.090 | L5: =SUM(K6:K6) -> $0.096 | N5: =SUM(M6:M6) -> $0.046 | P5: =SUM(O6:O6) -> $0.019 | R5: =SUM(Q6:Q6) -> $0.003 | T5: =SUM(S6:S6) -> $0.040 | V5: =SUM(U6:U6) -> $0.014 | X5: =SUM(W6:W6) -> $0.019 | Z5: =SUM(Y6:Y6) -> $0.012 | AB5: =SUM(AA6:AA6) -> $0.000 | AD5: =SUM(AC6:AC6) -> $0.000
B6: CALFED Coordination | C6: $0.207 | E6: $0.120 | G6: $0.115 | I6: $0.090 | K6: $0.096 | M6: $0.046 | O6: $0.019 | Q6: $0.003 | S6: $0.040 | U6: $0.014 | W6: $0.019 | Y6: $0.012 | AA6: $0.000 | AC6: $0.000
B7: Smarter Water Supply & Use | D7: =SUM(C8) -> $0.000 | F7: =SUM(E8) -> $0.017 | H7: =SUM(G8) -> $0.249 | J7: =SUM(I8) -> $0.001 | L7: =SUM(K8) -> $0.000 | N7: =SUM(M8) -> $0.000 | P7: =SUM(O8) -> $0.006 | R7: =SUM(Q8) -> $0.173 | T7: =SUM(S8) -> $0.000 | V7: =SUM(U8) -> $0.021 | X7: =SUM(W8) -> $0.000 | Z7: =SUM(Y8) -> $0.000 | AB7: =SUM(AA8) -> $0.000 | AD7: =SUM(AC8) -> $0.000
B8: Prado Dam Ecosystem Restoration and Water Conservation Project | C8: $0.000 | E8: $0.017 | G8: $0.249 | I8: $0.001 | K8: $0.000 | M8: $0.000 | O8: $0.006 | Q8: $0.173 | S8: $0.000 | U8: $0.021 | W8: $0.000 | Y8: $0.000 | AA8: $0.000 | AC8: $0.000
B9: Habitat Restoration | D9: =SUM(C10:C13) -> $0.688 | F9: =SUM(E10:E13) -> $0.389 | H9: =SUM(G10:G13) -> $1.275 | J9: =SUM(I10:I13) -> $10.092 | L9: =SUM(K10:K13) -> $8.853 | N9: =SUM(M10:M13) -> $12.983 | P9: =SUM(O10:O13) -> $8.860 | R9: =SUM(Q10:Q13) -> $13.342 | T9: =SUM(S10:S13) -> $10.331 | V9: =SUM(U10:U13) -> $12.948 | X9: =SUM(W10:W13) -> $3.485 | Z9: =SUM(Y10:Y13) -> $3.630 | AB9: =SUM(AA10:AA13) -> $1.855 | AD9: =SUM(AC10:AC13) -> $1.805
B10: Hamilton City, CA | C10: $0.055 | E10: $0.040 | G10: $0.167 | I10: $8.263 | K10: $7.084 | M10: $10.501 | O10: $6.927 | Q10: $11.264 | S10: $9.437 | U10: $11.356 | W10: $1.345 | Y10: $1.695 | AA10: $0.000 | AC10: $0.000
B11: San Pablo Bay Watershed and Suisun Marsh Ecosystem Restoration, CA | C11: $0.422 | E11: $0.218 | G11: $0.000 | I11: $0.003 | K11: -$0.141 | M11: $0.000 | O11: $0.000 | Q11: $0.000 | S11: $0.000 | U11: $0.000 | W11: $0.000 | Y11: $0.031 | AA11: $0.000 | AC11: $0.000
B12: Yuba River Fish Passage (Daguerre Point & Englebright Dams), CA | C12: $0.000 | E12: $0.000 | G12: $0.084 | I12: $0.270 | K12: $0.480 | M12: $0.955 | O12: $0.484 | Q12: $0.298 | S12: $0.050 | U12: -$0.033 | W12: -$0.015 | Y12: $0.000 | AA12: $0.000 | AC12: $0.000
B13: Yuba River, CA | C13: $0.211 | E13: $0.131 | G13: $1.024 | I13: $1.556 | K13: $1.430 | M13: $1.527 | O13: $1.449 | Q13: $1.780 | S13: $0.843 | U13: $1.624 | W13: $2.154 | Y13: $1.904 | AA13: $1.855 | AC13: $1.805
B14: Drought & Floodplain Management | D14: =SUM(C15:C37) -> $35.046 | F14: =SUM(E15:E37) -> $31.690 | H14: =SUM(G15:G37) -> $35.983 | J14: =SUM(I15:I37) -> $30.347 | L14: =SUM(K15:K37) -> $39.839 | N14: =SUM(M15:M37) -> $71.977 | P14: =SUM(O15:O37) -> $77.288 | R14: =SUM(Q15:Q37) -> $115.731 | T14: =SUM(S15:S37) -> $137.961 | V14: =SUM(U15:U37) -> $109.925 | X14: =SUM(W15:W37) -> $132.386 | Z14: =SUM(Y15:Y37) -> $175.567 | AB14: =SUM(AA15:AA37) -> $174.258 | AD14: =SUM(AC15:AC37) -> $132.288
B15: American River, Common Features, Natomas Basin, CA | C15: $0.000 | E15: $0.000 | G15: $0.999 | I15: $1.492 | K15: $3.071 | M15: $26.585 | O15: $33.392 | Q15: $57.737 | S15: $72.235 | U15: $51.501 | W15: $59.228 | Y15: $68.873 | AA15: $13.000 | AC15: $34.444
B16: Black Butte Lake, CA | C16: $2.638 | E16: $2.156 | G16: $2.950 | I16: $2.657 | K16: $2.387 | M16: $2.604 | O16: $2.871 | Q16: $2.768 | S16: $3.023 | U16: $4.177 | W16: $7.260 | Y16: $3.697 | AA16: $3.815 | AC16: $2.937
B17: Buchanan Dam - H.V. Eastman, CA | C17: $1.746 | E17: $1.840 | G17: $1.909 | I17: $2.144 | K17: $1.984 | M17: $2.006 | O17: $2.523 | Q17: $2.053 | S17: $2.926 | U17: $3.506 | W17: $3.241 | Y17: $2.756 | AA17: $8.574 | AC17: $2.896
B18: Farmington Dam, CA | C18: $0.408 | E18: $0.267 | G18: $0.337 | I18: $0.694 | K18: $0.429 | M18: $0.446 | O18: $0.554 | Q18: $0.411 | S18: $0.477 | U18: $0.440 | W18: $1.399 | Y18: $0.478 | AA18: $0.610 | AC18: $0.820
B19: Hidden Dam, Hensley Lake, CA | C19: $2.138 | E19: $1.896 | G19: $2.141 | I19: $2.066 | K19: $2.120 | M19: $2.281 | O19: $2.259 | Q19: $2.539 | S19: $2.741 | U19: $2.606 | W19: $3.047 | Y19: $3.067 | AA19: $5.590 | AC19: $2.646
B20: Inspection of Completed Works (ICW), CA | C20: $1.861 | E20: $1.528 | G20: $1.846 | I20: $2.585 | K20: $1.931 | M20: $1.946 | O20: $1.399 | Q20: $1.862 | S20: $2.638 | U20: $3.355 | W20: $3.449 | Y20: $4.447 | AA20: $0.000 | AC20: $0.000
B21: LA County Drainage Area, CA | C21: $6.358 | E21: $5.680 | G21: $6.843 | I21: $6.294 | K21: $12.112 | M21: $17.360 | O21: $19.221 | Q21: $22.612 | S21: $20.752 | U21: $17.504 | W21: $27.820 | Y21: $40.280 | AA21: $23.399 | AC21: $20.235
B22: Lower San Joaquin (Lathrop & Manteca), CA | C22: $0.000 | E22: $0.000 | G22: $0.000 | I22: $0.000 | K22: $0.000 | M22: $0.000 | O22: $0.000 | Q22: $0.000 | S22: $0.000 | U22: $0.000 | W22: $0.000 | Y22: $0.662 | AA22: $0.800 | AC22: $0.000
B23: Merced County Streams, CA | C23: $0.335 | E23: $0.283 | G23: $0.468 | I23: $0.320 | K23: $0.368 | M23: $0.429 | O23: $0.615 | Q23: $0.466 | S23: $0.382 | U23: $0.456 | W23: $0.689 | Y23: $0.641 | AA23: $0.570 | AC23: $0.420
B24: NCS, Lower Cache Creek, Yolo County, Woodland & Vicinity, CA | C24: $0.000 | E24: $0.000 | G24: $0.000 | I24: $0.000 | K24: $0.000 | M24: $0.000 | O24: $0.000 | Q24: $0.000 | S24: $0.000 | U24: $0.000 | W24: $0.028 | Y24: $0.273 | AA24: $0.000 | AC24: $0.000
B25: New Hogan Lake, CA | C25: $2.559 | E25: $9.789 | G25: $3.093 | I25: $2.849 | K25: $2.874 | M25: $3.101 | O25: $2.603 | Q25: $3.032 | S25: $6.149 | U25: $3.073 | W25: $3.456 | Y25: $4.235 | AA25: $3.395 | AC25: $3.475
B26: New Melones Lake, CA | C26: $2.012 | E26: $1.625 | G26: $1.805 | I26: $1.821 | K26: $2.277 | M26: $2.773 | O26: $2.468 | Q26: $2.216 | S26: $2.183 | U26: $2.461 | W26: $3.157 | Y26: $3.042 | AA26: $2.830 | AC26: $2.215
B27: Sacramento River Bank Protection, CA (Construction) | C27: $9.049 | E27: $0.773 | G27: $6.005 | I27: $1.172 | K27: $4.252 | M27: $4.575 | O27: $2.880 | Q27: $6.056 | S27: $6.446 | U27: $2.385 | W27: $2.039 | Y27: $2.133 | AA27: $0.000 | AC27: $0.000
B28: Sacramento River Bank Protection (GRR), CA (Investigations) | C28: $0.000 | E28: $0.000 | G28: $0.039 | I28: $0.244 | K28: $0.607 | M28: $1.264 | O28: -$0.045 | Q28: $0.000 | S28: $0.000 | U28: -$0.285 | W28: $0.000 | Y28: $0.000 | AA28: $0.000 | AC28: $0.000
B29: Sacramento River, Yolo Bypass, CA | C29: $0.000 | E29: $0.000 | G29: $0.000 | I29: $0.000 | K29: $0.000 | M29: $0.000 | O29: $0.000 | Q29: $0.000 | S29: $0.000 | U29: $0.000 | W29: $0.000 | Y29: $0.000 | AA29: $0.600 | AC29: $0.600
B30: Sacramento-San Joaquin Comprehensive Basins Study (Central Valley Integrated Flood Management), CA | C30: $0.355 | E30: $0.106 | G30: $0.389 | I30: $0.360 | K30: $0.274 | M30: $0.023 | O30: $0.000 | Q30: $0.000 | S30: $0.000 | U30: -$0.299 | W30: $0.000 | Y30: $0.000 | AA30: $0.000 | AC30: $0.000
B31: Sacramento-San Joaquin Delta Island & Levee, CA | C31: $0.670 | E31: $0.904 | G31: $0.920 | I31: $0.013 | K31: $0.008 | M31: $0.000 | O31: $0.000 | Q31: $0.000 | S31: $0.000 | U31: $0.000 | W31: $0.000 | Y31: -$0.000 | AA31: $0.550 | AC31: $0.972
B32: San Joaquin River Basin, Lower San Joaquin River, CA | C32: $0.286 | E32: $0.129 | G32: $0.833 | I32: $0.470 | K32: $0.249 | M32: $0.129 | O32: $0.108 | Q32: $0.173 | S32: $1.254 | U32: $3.014 | W32: $6.599 | Y32: $7.373 | AA32: $45.030 | AC32: $10.000
B33: Santa Ana River Basin, CA | C33: $3.605 | E33: $4.283 | G33: $4.574 | I33: $4.197 | K33: $4.567 | M33: $4.760 | O33: $5.308 | Q33: $12.699 | S33: $12.874 | U33: $12.466 | W33: $9.366 | Y33: $8.825 | AA33: $12.737 | AC33: $7.165
B34: South San Francisco Bay Shoreline, CA, Phase I | C34: $1.026 | E34: $0.431 | G34: $0.832 | I34: $0.969 | K34: $0.329 | M34: $1.695 | O34: $1.132 | Q34: $0.941 | S34: $1.935 | U34: $1.702 | W34: $1.065 | Y34: $6.645 | AA34: $0.000 | AC34: $0.000
B35: South San Francisco Bay Shoreline, CA (Palo Alto) | C35: $0.000 | E35: $0.000 | G35: $0.000 | I35: $0.000 | K35: $0.000 | M35: $0.000 | O35: $0.000 | Q35: $0.000 | S35: $0.854 | U35: $0.549 | W35: $0.060 | Y35: $0.151 | AA35: $0.000 | AC35: $0.000
B36: South San Francisco Bay Shoreline, CA (Sunnyvale) | C36: $0.000 | E36: $0.000 | G36: $0.000 | I36: $0.000 | K36: $0.000 | M36: $0.000 | O36: $0.000 | Q36: $0.000 | S36: $0.000 | U36: $0.000 | W36: $0.000 | Y36: $0.000 | AA36: $0.000 | AC36: $0.000
B37: West Sacramento, CA | C37: $0.000 | E37: $0.000 | G37: $0.000 | I37: $0.000 | K37: $0.000 | M37: $0.000 | O37: $0.000 | Q37: $0.166 | S37: $1.092 | U37: $1.313 | W37: $0.484 | Y37: $17.988 | AA37: $52.758 | AC37: $43.463
B38: Total | D38: =D5+D7+D9+D14 -> $35.941 | F38: =F5+F7+F9+F14 -> $32.216 | H38: =H5+H7+H9+H14 -> $37.622 | J38: =J5+J7+J9+J14 -> $40.530 | L38: =L5+L7+L9+L14 -> $48.788 | N38: =N5+N7+N9+N14 -> $85.006 | P38: =P5+P7+P9+P14 -> $86.172 | R38: =R5+R7+R9+R14 -> $129.249 | T38: =T5+T7+T9+T14 -> $148.332 | V38: =V5+V7+V9+V14 -> $122.908 | X38: =X5+X7+X9+X14 -> $135.890 | Z38: =Z5+Z7+Z9+Z14 -> $179.208 | AB38: =AB5+AB7+AB9+AB14 -> $176.113 | AD38: =AD5+AD7+AD9+AD14 -> $134.093
B39: Additional agency notes: Only a portion of some projects (O&M) are applicable to the efforts in the Bay Delta IFAP, which is explained in the project descriptions.
B40: FY24 numbers reflect estimated allocations under FY24 annualized CR amount.
B41: FY 2022-FY 2024 include IIJA allocations for the projects.

Sheet NRCS 12-20
B2: USDA Natural Resources Conservation Service Bay-Delta Totals Fiscal Years 2012 through 2025 (in millions of dollars)
B3: Interim Federal Action Plan (IFAP) Functional Areas / Programs and Projects | C3: FY 2012 | E3: FY 2013 | G3: FY 2014 | I3: FY 2015 | K3: FY 2016 | M3: FY 2017 | O3: FY 2018 | Q3: FY 2019 | S3: FY 2020 | U3: FY 2021 | W3: FY 2022 | Y3: FY 2023 | AA3: FY 2024 | AC3: FY 2025
C4: sub | D4: total | E4: sub | F4: total | G4: sub | H4: total | I4: sub | J4: total | K4: sub | L4: total | M4: sub | N4: total | O4: sub | P4: total | Q4: sub | R4: total | S4: sub | T4: total | U4: sub | V4: total | W4: sub | X4: total | Y4: sub | Z4: total | AA4: sub | AB4: total | AC4: sub | AD4: total
B5: Renewed Federal State Partnership | D5: $0.000 | F5: $0.000 | H5: $0.000 | J5: $0.000 | L5: $0.000 | N5: $0.000 | P5: $0.000 | R5: $0.000 | T5: $0.000 | V5: $0.000 | AB5: $0.000 | AD5: $0.000
B6: Smarter Water Supply & Use | D6: =SUM(C7:C10) -> $35.592 | F6: =SUM(E7:E10) -> $27.503 | H6: =SUM(G7:G10) -> $17.673 | J6: =SUM(I7:I10) -> $41.096 | L6: =SUM(K7:K10) -> $38.636 | N6: =SUM(M7:M10) -> $29.113 | P6: $72.007 | R6: $46.154 | T6: $33.491 | V6: $36.553 | X6: $34.880 | Z6: $34.880 | AB6: 34.88 | AD6: =SUM(AC7:AC10) -> 35.09
B7: Environmental Quality Incentive Program (EQIP) | C7: $22.078 | E7: $13.989 | G7: $17.673 | I7: $41.096 | K7: $38.636 | M7: $28.337 | O7: $71.807 | Q7: $46.082 | S7: $32.117 | U7: $35.091 | W7: $32.700 | Y7: $32.700 | AA7: $32.700 | AC7: $35.000
B8: Regional Conservation Partnership Program (RCPP) | M8: $0.776 | O8: $0.200 | Q8: $0.072 | S8: $1.374 | U8: $1.462 | W8: $2.180 | Y8: $2.180 | AA8: $2.180 | AC8: $0.090
B9: Cooperative Conservation Partnership Initiative (CCPI) | C9: $2.299 | E9: $2.299 | G9: $0.000 | I9: $0.000 | K9: $0.000 | M9: $0.000 | O9: $0.000 | Q9: $0.000 | S9: $0.000 | U9: $0.000 | W9: $0.000 | Y9: $0.000 | AA9: $0.000 | AC9: $0.000
B10: Agricultural Water Enhancement Program (AWEP) | C10: $11.215 | E10: $11.215 | G10: $0.000 | I10: $0.000 | K10: $0.000 | M10: $0.000 | O10: $0.000 | Q10: $0.000 | S10: $0.000 | U10: $0.000 | W10: $0.000 | Y10: $0.000 | AA10: $0.000 | AC10: $0.000
B11: Habitat Restoration | D11: =SUM(C12:C17) -> $20.483 | F11: =SUM(E12:E17) -> $17.406 | H11: =SUM(G12:G17) -> $4.484 | J11: =SUM(I12:I17) -> $11.878 | L11: =SUM(K12:K17) -> $7.374 | N11: =SUM(M12:M17) -> $4.677 | P11: $8.574 | R11: $7.539 | T11: $22.502 | V11: $27.500 | X11: $18.530 | Z11: $18.530 | AB11: 18.53 | AD11: =SUM(AC12:AC17) -> 16.258
B12: Wetland Reserve Program (WRP) | C12: $19.626 | E12: $15.520 | G12: $0.000 | I12: $0.000 | K12: $0.000 | M12: $0.000 | O12: $0.000 | Q12: $0.000 | S12: $0.000 | U12: $0.000 | W12: $0.000 | Y12: $0.000 | AA12: $0.000 | AC12: $0.000
B13: Agricultural Conservation Easement Program (ACEP) | C13: $0.000 | E13: $0.000 | G13: $3.834 | I13: $3.759 | K13: $3.190 | M13: $0.783 | O13: $3.171 | Q13: $4.522 | S13: $15.291 | U13: $10.163 | W13: $10.900 | Y13: $10.900 | AA13: $10.900 | AC13: $4.158
B14: Wildlife Habitat Incentive Program (WHIP) | C14: $0.280 | E14: $0.280 | G14: $0.000 | I14: $0.000 | K14: $0.000 | M14: $0.000 | O14: $0.000 | Q14: $0.000 | S14: $0.000 | U14: $0.000 | W14: $0.000 | Y14: $0.000 | AA14: $0.000 | AC14: $0.000
B15: Environmental Quality Incentive Program (EQIP) | C15: $0.392 | E15: $1.421 | G15: $0.650 | I15: $0.819 | K15: $0.319 | M15: $1.501 | O15: $3.803 | Q15: $2.440 | S15: $6.391 | U15: $17.315 | W15: $4.360 | Y15: $4.360 | AA15: $4.360 | AC15: $12.000
B16: Regional Conservation Partnership Program (RCPP) | C16: $0.000 | E16: $0.000 | G16: $0.000 | I16: $7.300 | K16: $3.865 | M16: $2.393 | O16: $1.600 | Q16: $0.577 | S16: $0.820 | U16: $0.022 | W16: $3.270 | Y16: $3.270 | AA16: $3.270 | AC16: $0.100
B17: Cooperative Conservation Partnership Initiative (CCPI) | C17: $0.185 | E17: $0.185 | G17: $0.000 | I17: $0.000 | K17: $0.000 | M17: $0.000 | O17: $0.000 | Q17: $0.000 | S17: $0.000 | U17: $0.000 | W17: $0.000 | Y17: $0.000 | AA17: $0.000 | AC17: $0.000
B18: Drought & Floodplain Management | D18: $0.000 | F18: $0.000 | H18: =SUM(G19:G20) -> $30.000 | J18: =SUM(I19:I20) -> $0.000 | L18: =SUM(K19:K20) -> $0.000 | N18: =SUM(M19:M20) -> $0.000 | P18: $0.000 | R18: $0.000 | T18: $0.000 | V18: $22.543 | X18: $10.900 | Z18: $10.900 | AB18: $10.900 | AD18: =SUM(AC19:AC20) -> $10.000
B19: Floodplain Easement Program (FPE) | G19: $5.00 | AC19: 0
B20: Environmental Quality Incentive Program (EQIP) | G20: $25.00 | U20: 22.543 | W20: 10.9 | Y20: 10.9 | AA20: 10.900 | AC20: 10.000
B21: Total | D21: =D5+D6+D11+D18 -> $56.075 | F21: =F5+F6+F11+F18 -> $44.909 | H21: =H5+H6+H11+H18 -> $52.157 | J21: =J5+J6+J11+J18 -> $52.974 | L21: =L5+L6+L11+L18 -> $46.010 | N21: =N5+N6+N11+N18 -> $33.790 | P21: =P5+P6+P11+P18 -> $80.581 | R21: =R5+R6+R11+R18 -> $53.693 | T21: =T5+T6+T11+T18 -> $55.993 | V21: =V5+V6+V11+V18 -> $86.596 | X21: =X5+X6+X11+X18 -> $64.310 | Z21: =Z5+Z6+Z11+Z18 -> $64.310 | AB21: =AB5+AB6+AB11+AB18 -> $64.310 | AD21: $61.348

Sheet NOAA 12-20
B2: NOAA Fisheries Bay-Delta Totals Fiscal Years 2012 through 2025 (in millions of dollars)
B3: Interim Federal Action Plan (IFAP) Functional Areas / Programs and Projects | C3: FY 2012 | E3: FY 2013 | G3: FY 2014 | I3: FY 2015 | K3: FY 2016 | M3: FY 2017 | O3: FY 2018 | Q3: FY 2019 | S3: FY 2020 | U3: FY 2021 | W3: FY 2022 | Y3: FY 2023 | AA3: FY 2024 | AC3: FY 2025
C4: sub | D4: total | E4: sub | F4: total | G4: sub | H4: total | I4: sub | J4: total | K4: sub | L4: total | M4: sub | N4: total | O4: sub | P4: total | Q4: sub | R4: total | S4: sub | T4: total | U4: sub | V4: total | W4: sub | X4: total | Y4: sub | Z4: total | AA4: sub | AB4: total | AC4: sub | AD4: total
B5: Renewed Federal State Partnership | D5: =SUM(C6:C7) -> $0.180 | F5: =SUM(E6:E7) -> $0.169 | H5: =SUM(G6:G7) -> $0.180 | J5: =SUM(I6:I7) -> $0.260 | L5: =SUM(K6:K7) -> $0.405 | N5: $0.416 | P5: $0.380 | R5: $0.309 | T5: =S6+S7 -> $0.456 | V5: $0.451 | X5: =W6+W7 -> $0.495 | Z5: =Y6+Y7 -> $0.538 | AB5: =AA6+AA7 -> $0.440 | AD5: =AC6+AC7 -> $0.449
B6: Oversight and Coordination (General) | C6: $0.110 | E6: =(0.11-(0.11*0.063)) -> $0.103 | G6: $0.110 | I6: $0.184 | K6: $0.234 | M6: $0.246 | O6: $0.201 | Q6: $0.206 | S6: $0.223 | U6: $0.287 | W6: $0.329 | Y6: $0.389 | AA6: $0.329 | AC6: $0.336
B7: Science Program (IEP) | C7: $0.070 | E7: =(0.07-(0.07*0.063)) -> $0.066 | G7: $0.070 | I7: $0.076 | K7: $0.171 | M7: $0.170 | O7: $0.179 | Q7: $0.103 | S7: $0.233 | U7: $0.164 | W7: $0.166 | Y7: $0.149 | AA7: $0.111 | AC7: $0.113
B8: Smarter Water Supply & Use | D8: =SUM(C9:C9) -> $1.000 | F8: =SUM(E9:E9) -> $0.937 | H8: =SUM(G9:G9) -> $1.000 | J8: =SUM(I9:I9) -> $1.183 | L8: =SUM(K9:K9) -> $1.106 | N8: $1.028 | P8: $0.982 | R8: $1.059 | T8: =S9 -> $0.890 | V8: $0.941 | X8: =W9 -> $0.870 | Z8: =Y9 -> $0.786 | AB8: =AA9 -> $0.911 | AD8: =AC9 -> $0.930
B9: Oversight and Coordination (Water Operations) | C9: $1.000 | E9: =(1-(1*0.063)) -> $0.937 | G9: $1.000 | I9: $1.183 | K9: $1.106 | M9: $1.028 | O9: $0.982 | Q9: $1.059 | S9: $0.890 | U9: $0.941 | W9: $0.870 | Y9: $0.786 | AA9: $0.911 | AC9: $0.930
B10: Habitat Restoration | D10: =SUM(C11:C12) -> $0.210 | F10: =SUM(E11:E12) -> $0.197 | H10: =SUM(G11:G12) -> $0.210 | J10: =SUM(I11:I12) -> $0.073 | L10: =SUM(K11:K12) -> $0.133 | N10: $0.130 | P10: $0.148 | R10: $0.151 | T10: =S11+S12 -> $0.202 | V10: $0.117 | X10: =W11+W12 -> $0.165 | Z10: =Y11+Y12 -> $0.203 | AB10: =AA11+AA12 -> $0.207 | AD10: =AC11+AC12 -> $0.212
B11: Ecosystem Restoration (Program O and C) | C11: $0.140 | E11: =(0.14-(0.14*0.063)) -> $0.131 | G11: $0.140 | I11: $0.060 | K11: $0.067 | M11: $0.064 | O11: $0.069 | Q11: $0.051 | S11: $0.097 | U11: $0.062 | W11: $0.105 | Y11: $0.141 | AA11: $0.142 | AC11: $0.145
B12: Ecosystem Restoration (Screen E and R) | C12: $0.070 | E12: =(0.07-(0.07*0.063)) -> $0.066 | G12: $0.070 | I12: $0.013 | K12: $0.066 | M12: $0.066 | O12: $0.079 | Q12: $0.100 | S12: $0.105 | U12: $0.055 | W12: $0.060 | Y12: $0.062 | AA12: $0.065 | AC12: $0.067
B13: Drought & Floodplain Management | D13: $0.000 | F13: $0.000 | H13: $0.000 | J13: $0.000 | L13: $0.000 | N13: $0.000 | P13: $0.000
B14: Total | D14: =D5+D8+D10+E13 -> $1.390 | F14: =F5+F8+F10+F13 -> $1.302 | H14: =H5+H8+H10+H13 -> $1.390 | J14: =J5+J8+J10+J13 -> $1.516 | L14: =L5+L8+L10+L13 -> $1.644 | N14: =N5+N8+N10+N13 -> $1.574 | P14: =P5+P8+P10+P13 -> $1.510 | R14: =R5+R8+R10+R13 -> $1.519 | T14: =T5+T8+T10+T13 -> $1.548 | V14: =V5+V8+V10+V13 -> $1.509 | X14: =X5+X8+X10+X13 -> $1.530 | Z14: =Z5+Z8+Z10+Z13 -> $1.527 | AB14: =AB5+AB8+AB10+AB13 -> $1.558 | AD14: =AD5+AD8+AD10+AD13 -> $1.591
C15: test

Sheet USGS 12-20
B2: U. S. Geological Survey Bay-Delta Totals Fiscal Years 2012 through 2025 (in millions of dollars)
B3: Interim Federal Action Plan (IFAP) Functional Areas / Programs and Projects | C3: FY 2012 | E3: FY 2013 | G3: FY 2014 | I3: FY 2015 | K3: FY 2016 | M3: FY 2017 | O3: FY 2018 | Q3: FY 2019 | S3: FY 2020 | U3: FY 2021 | W3: FY 2022 | Y3: FY 2023 | AA3: FY 2024 | AC3: FY 2025
C4: sub | D4: total | E4: sub | F4: total | G4: sub | H4: total | I4: sub | J4: total | K4: sub | L4: total | M4: sub | N4: total | O4: sub | P4: total | Q4: sub | R4: total | S4: sub | T4: total | U4: sub | V4: total | W4: sub | X4: total | Y4: sub | Z4: total | AA4: sub | AB4: total | AC4: sub | AD4: total
B5: Renewed Federal State Partnership | D5: $0.000 | F5: $0.000 | H5: $0.000 | J5: $0.000 | L5: $0.000 | N5: $0.000 | P5: $0.000 | R5: $0.000 | T5: $0.000 | V5: $0.000 | X5: $0.000 | Z5: $0.000 | AB5: $0.000 | AD5: $0.000
B6: Smarter Water Supply & Use | D6: $0.000 | F6: $0.000 | H6: $0.000 | J6: $0.000 | L6: $0.000 | N6: $0.000 | P6: $0.000 | R6: $0.000 | T6: $0.000 | V6: $0.000 | X6: $0.000 | Z6: $0.000 | AB6: $0.000 | AD6: $0.000
B7: Habitat Restoration | D7: =SUM(C8:C14) -> $8.136 | F7: =SUM(E8:E14) -> $6.884 | H7: =SUM(G8:G14) -> $6.043 | J7: =SUM(I8:I14) -> $8.626 | L7: =SUM(K8:K14) -> $7.572 | N7: =SUM(M8:M14) -> $11.056 | P7: =SUM(O8:O14) -> $8.176 | R7: =SUM(Q8:Q14) -> $7.801 | T7: =SUM(S8:S14) -> $7.948 | V7: =SUM(U8:U14) -> $7.255 | X7: =SUM(W8:W14) -> $7.259 | Z7: =SUM(Y8:Y14) -> $7.259 | AB7: =SUM(AA8:AA14) -> $7.259 | AD7: =SUM(AC8:AC14) -> $7.259
B8: Delta Science Program | C8: $0.698 | E8: $0.662 | G8: $0.662 | I8: $0.662 | K8: $0.662 | M8: $0.662 | O8: $0.662 | Q8: $0.662 | S8: $0.662 | U8: $0.311 | W8: $0.311 | Y8: $0.311 | AA8: $0.311 | AC8: $0.311
B9: Ecosystems | C9: $1.887 | E9: $1.789 | G9: $0.942 | I9: $1.442 | K9: $2.067 | M9: $2.065 | O9: $2.065 | Q9: $2.213 | S9: $2.213 | U9: $2.313 | W9: $2.313 | Y9: $2.313 | AA9: $2.313 | AC9: $2.313
B10: Land Resources | C10: $0.870 | E10: $0.000 | G10: $0.000 | I10: $0.000 | K10: $0.000 | M10: $0.000 | O10: $0.075 | Q10: $0.000 | S10: $0.000 | U10: $0.000 | W10: $0.000 | Y10: $0.000 | AA10: $0.000 | AC10: $0.000
B11: Energy, Minerals, and Environmental Health | C11: $0.124 | E11: $0.116 | G11: $0.116 | I11: $0.116 | K11: $0.116 | M11: $0.116 | O11: $0.100 | Q11: $0.100 | S11: $0.100 | U11: $0.000 | W11: $0.000 | Y11: $0.000 | AA11: $0.000 | AC11: $0.000
B12: Natural Hazards | C12: $0.657 | E12: $0.619 | G12: $0.694 | I12: $0.659 | K12: $0.538 | M12: $0.538 | O12: $0.538 | Q12: $0.507 | S12: $0.507 | U12: $0.507 | W12: $0.507 | Y12: $0.507 | AA12: $0.507 | AC12: $0.507
B13: Water Resources | C13: $3.263 | E13: $3.094 | G13: $3.025 | I13: $4.837 | K13: $3.197 | M13: $6.724 | O13: $3.836 | Q13: $3.770 | S13: $3.847 | U13: $3.436 | W13: $3.436 | Y13: $3.436 | AA13: $3.436 | AC13: $3.436
B14: Core Science Systems | C14: $0.637 | E14: $0.604 | G14: $0.604 | I14: $0.910 | K14: $0.992 | M14: $0.951 | O14: $0.900 | Q14: $0.549 | S14: $0.619 | U14: $0.688 | W14: $0.692 | Y14: $0.692 | AA14: $0.692 | AC14: $0.692
B15: Drought & Floodplain Management | D15: $0.000 | F15: $0.000 | H15: $0.000 | J15: $0.000 | L15: $0.000 | N15: $0.000 | P15: $0.000
B16: Total | D16: =D5+D6+D7+D15 -> $8.136 | F16: =F5+F6+F7+F15 -> $6.884 | H16: =H5+H6+H7+H15 -> $6.043 | J16: =J5+J6+J7+J15 -> $8.626 | L16: =L5+L6+L7+L15 -> $7.572 | N16: =N5+N6+N7+N15 -> $11.056 | P16: =P5+P6+P7+P15 -> $8.176 | R16: =R5+R6+R7+R15 -> $7.801 | T16: =T5+T6+T7+T15 -> $7.948 | V16: =V5+V6+V7+V15 -> $7.255 | X16: =X5+X6+X7+X15 -> $7.259 | Z16: =Z5+Z6+Z7+Z15 -> $7.259 | AB16: =AB5+AB6+AB7+AB15 -> $7.259 | AD16: =AD5+AD6+AD7+AD15 -> $7.259
B17: Note: FY 2012 and FY 2013 reflects reprogramming.

Sheet USGS2011 (hidden)
B2: U. S. Geological Survey Bay-Delta Totals Fiscal Year 2011
B3: (in millions of dollars)
B4: Program/Project Name | C4: Details | D4: Funding
D5: Category A | E5: Category B
B6: Science Program | D6: =SUM(D7:D11) -> $1.000 | E6: =SUM(E7:E11) -> $5.012
B7: Interagency Ecological Program | C7: From 2001 IEP workplan summary | D7: $1.000
B8: Ecosystems | E8: $2.264
B9: Climate & Land Use Change | E9: $0.635
B10: Energy, Minerals, & Environmental Health | E10: $0.354
B11: Water Resources | E11: $1.759
B12: Total | D12: =SUM(D7:D11) -> $1.000 | E12: =SUM(E7:E11) -> $5.012
B13: Category A + Category B Total | E13: =SUM(D12:E12) -> $6.012

Sheet USGS 2010 (hidden)
B4: UPDATE IF NECESSARY
B6: U.S. Geological Survey Fiscal Year 2010 ($ in millions)
B7: Program/Project Name | C7: Details | D7: Funding
D8: Category A | E8: Category B
B9: Science Program | D9: =SUM(D10:D14) -> $1.217 | E9: =SUM(E10:E14) -> $2.283 | F9: =D9+E9 -> $3.500
B10: Interagency Ecological Program | C10: From 2001 IEP workplan summary | D10: $0.505
B11: Lead Scientist - Oversight | D11: $0.712
B12: Place-based study of SF Bay | E12: $1.237
B13: San Joaquin Basin National Water Quality Assessment (NAWQA) | E13: $0.581
B14: Sacramento Basin National Water Quality Assessment (NAWQA) | E14: $0.465
B15: Total | D15: =SUM(D10:D14) -> $1.217 | E15: =SUM(E12:E14) -> $2.283 | F15: =D15+E15 -> $3.500

Sheet F&WS 12-20
B2: Fish and Wildlife Service Bay-Delta Totals Fiscal Years 2012 through 2025 (in millions of dollars)
B3: Interim Federal Action Plan (IFAP) Functional Areas / Programs and Projects | C3: FY 2012 | E3: FY 2013 | G3: FY 2014 | I3: FY 2015 | K3: FY 2016 | M3: FY 2017 | O3: FY 2018 | Q3: FY 2019 | S3: FY 2020 | U3: FY 2021 | W3: FY 2022 | Y3: FY 2023 | AA3: fy 2024 | AC3: fy 2025
C4: sub | D4: total | E4: sub | F4: total | G4: sub | H4: total | I4: sub | J4: total | K4: sub | L4: total | M4: sub | N4: total | O4: sub | P4: total | Q4: sub | R4: total | S4: sub | T4: total | U4: sub | V4: total | W4: sub | X4: total | Y4: sub | Z4: total | AA4: sub | AB4: total | AC4: sub | AD4: total
B5: Renewed Federal State Partnership | D5: =SUM(C8:C14) -> $0.793 | F5: =SUM(E8:E14) -> $0.793 | H5: =SUM(G8:G14) -> $0.793 | J5: =SUM(I6:I14) -> $0.793 | L5: =SUM(K6:K14) -> $0.793 | N5: =SUM(M6:M14) -> $0.793 | P5: =SUM(O6:O14) -> $0.790 | R5: =SUM(Q6:Q14) -> $0.801 | T5: =SUM(S6:S14) -> $0.801 | V5: =SUM(U6:U14) -> $0.801 | X5: =SUM(W6:W14) -> $0.801 | Z5: =SUM(Y6:Y14) -> $0.801 | AB5: =SUM(AA6:AA14) -> $0.801 | AD5: =SUM(AC6:AC14) -> $0.801
B6: Conservation and Restoration | K6: $0.012 | M6: $0.012 | O6: $0.010 | Q6: $0.020 | S6: $0.020 | U6: $0.020 | W6: $0.020 | Y6: $0.020 | AA6: $0.020 | AC6: $0.020
B7: Planning and Consultation | K7: $0.615 | M7: $0.615 | O7: $0.614 | Q7: $0.166 | S7: $0.166 | U7: $0.166 | W7: $0.166 | Y7: $0.166 | AA7: $0.166 | AC7: $0.166
B8: Habitat Conservation/Conservation Planning Assistance | C8: $0.358 | E8: $0.358 | G8: $0.358 | I8: $0.358
B9: Endangered Species Consultation Program | C9: $0.257 | E9: $0.257 | G9: $0.257 | I9: $0.257
B10: Endangered Species Candidate Conservation | C10: $0.008 | E10: $0.008 | G10: $0.008 | I10: $0.008
B11: Environmental Contaminants Program | C11: $0.004 | E11: $0.004 | G11: $0.004 | I11: $0.004
B12: Aquatic Habitat & Species Conservation - Habitat Assessment and Restoration | C12: $0.000 | E12: $0.000 | G12: $0.000 | I12: $0.000
B13: Aquatic Habitat & Species Conservation - Population Assessment/Coop. Mgmt | C13: $0.000 | E13: $0.000 | G13: $0.000 | I13: $0.000
B14: Recovery | C14: $0.166 | E14: $0.166 | G14: $0.166 | I14: $0.166 | K14: $0.166 | M14: $0.166 | O14: $0.166 | Q14: $0.615 | S14: $0.615 | U14: $0.615 | W14: $0.615 | Y14: $0.615 | AA14: $0.615 | AC14: $0.615
B15: Smarter Water Supply & Use | D15: =SUM(C18:C22) -> $0.987 | F15: =SUM(E18:E22) -> $0.987 | H15: =SUM(G18:G22) -> $0.987 | J15: =SUM(I16:I22) -> $0.987 | L15: =SUM(K16:K22) -> $0.987 | N15: =SUM(M16:M22) -> $0.987 | P15: =SUM(O16:O22) -> $0.982 | R15: =SUM(Q16:Q22) -> $0.987 | T15: =SUM(S16:S22) -> $0.987 | V15: =SUM(U16:U22) -> $0.957 | X15: =SUM(W16:W22) -> $0.957 | Z15: =SUM(Y16:Y22) -> $0.957 | AB15: =SUM(AA16:AA22) -> $0.957 | AD15: =SUM(AC16:AC22) -> $0.957
B16: Conservation and Restoration | K16: $0.020 | M16: $0.020 | O16: $0.017 | Q16: $0.020 | S16: $0.020 | U16: $0.020 | W16: $0.020 | Y16: $0.020 | AA16: $0.020 | AC16: $0.020
B17: Planning and Consultation
B18: Habitat Conservation/Conservation Planning Assistance | C18: $0.261 | E18: $0.261 | G18: $0.261 | I18: $0.261 | K18: $0.691 | M18: $0.691 | O18: $0.690 | Q18: $0.691 | S18: $0.691 | U18: $0.691 | W18: $0.691 | Y18: $0.691 | AA18: $0.691 | AC18: $0.691
B19: Endangered Species Consultation Program | C19: $0.430 | E19: $0.430 | G19: $0.430 | I19: $0.430
B20: Endangered Species Candidate Conservation | C20: $0.014 | E20: $0.014 | G20: $0.014 | I20: $0.014
B21: Environmental Contaminants Program | C21: $0.006 | E21: $0.006 | G21: $0.006 | I21: $0.006
B22: Recovery | C22: $0.276 | E22: $0.276 | G22: $0.276 | I22: $0.276 | K22: $0.276 | M22: $0.276 | O22: $0.275 | Q22: $0.276 | S22: $0.276 | U22: $0.246 | W22: $0.246 | Y22: $0.246 | AA22: $0.246 | AC22: $0.246
B23: Habitat Restoration | D23: =SUM(C23:C30) -> $2.937 | F23: =SUM(E26:E30) -> $2.937 | H23: =SUM(G26:G30) -> $2.937 | J23: =SUM(I24:I30) -> $2.937 | L23: =SUM(K24:K30) -> $4.037 | N23: =SUM(M24:M30) -> $4.037 | P23: =SUM(O24:O30) -> $4.023 | R23: =SUM(Q24:Q30) -> $4.037 | T23: =SUM(S24:S30) -> $4.037 | V23: =SUM(U24:U30) -> $4.037 | X23: =SUM(W24:W30) -> $4.037 | Z23: =SUM(Y24:Y30) -> $4.037 | AB23: =SUM(AA24:AA30) -> $4.037 | AD23: =SUM(AC24:AC30) -> $4.037
B24: Conservation and Restoration | K24: $0.044 | M24: $0.044 | O24: $0.037 | Q24: $0.044 | S24: $0.044 | U24: $0.044 | W24: $0.044 | Y24: $0.044 | AA24: $0.044 | AC24: $0.044
B25: Planning and Consultation | K25: $2.284 | M25: $2.284 | O25: $2.280 | Q25: $2.284 | S25: $2.284 | U25: $2.284 | W25: $2.284 | Y25: $2.284 | AA25: $2.284 | AC25: $2.284
B26: Habitat Conservation/Conservation Planning Assistance | C26: $1.316 | E26: $1.316 | G26: $1.316 | I26: $1.316
B27: Endangered Species Consultation Program | C27: $0.968 | E27: $0.968 | G27: $0.968 | I27: $0.968
B28: Endangered Species Candidate Conservation | C28: $0.031 | E28: $0.031 | G28: $0.031 | I28: $0.031
B29: Environmental Contaminants Program | C29: $0.013 | E29: $0.013 | G29: $0.013 | I29: $0.013
B30: Recovery | C30: $0.609 | E30: $0.609 | G30: $0.609 | I30: $0.609 | K30: $1.709 | M30: $1.709 | O30: $1.706 | Q30: $1.709 | S30: $1.709 | U30: $1.709 | W30: $1.709 | Y30: $1.709 | AA30: $1.709 | AC30: $1.709
B31: Drought & Floodplain Management | D31: =SUM(C34:C38) -> $0.143 | F31: =SUM(E34:E38) -> $0.143 | H31: =SUM(G34:G38) -> $0.143 | J31: =SUM(I34:I38) -> $0.143 | L31: =SUM(K32:K38) -> $0.143 | N31: =SUM(M32:M38) -> $0.143 | P31: =SUM(O32:O38) -> $0.142 | R31: =SUM(Q32:Q38) -> $0.143 | T31: =SUM(S32:S38) -> $0.143 | V31: =SUM(U32:U38) -> $0.143 | X31: =SUM(W32:W38) -> $0.143 | Z31: =SUM(Y32:Y38) -> $0.143 | AB31: =SUM(AA32:AA38) -> $0.143 | AD31: =SUM(AC32:AC38) -> $0.143
B32: Conservation and Restoration | K32: $0.004 | M32: $0.004 | O32: $0.003 | Q32: $0.004 | S32: $0.004 | U32: $0.004 | W32: $0.004 | Y32: $0.004 | AA32: $0.004 | AC32: $0.004
B33: Planning and Consultation | K33: $0.085 | M33: $0.085 | O33: $0.085 | Q33: $0.085 | S33: $0.085 | U33: $0.085 | W33: $0.085 | Y33: $0.085 | AA33: $0.085 | AC33: $0.085
B34: Habitat Conservation/Conservation Planning Assistance | C34: $0.000 | E34: $0.000 | G34: $0.000 | I34: $0.000
B35: Endangered Species Consultation Program | C35: $0.085 | E35: $0.085 | G35: $0.085 | I35: $0.085
B36: Endangered Species Candidate Conservation | C36: $0.003 | E36: $0.003 | G36: $0.003 | I36: $0.003
B37: Environmental Contaminants Program | C37: $0.001 | E37: $0.001 | G37: $0.001 | I37: $0.001
B38: Recovery | C38: $0.054 | E38: $0.054 | G38: $0.054 | I38: $0.054 | K38: $0.054 | M38: $0.054 | O38: $0.054 | Q38: $0.054 | S38: $0.054 | U38: $0.054 | W38: $0.054 | Y38: $0.054 | AA38: $0.054 | AC38: $0.054
B39: Total | D39: =SUM(D31+D23+D15+D5) -> $4.860 | F39: =SUM(F31+F23+F15+F5) -> $4.860 | H39: =SUM(H31+H23+H15+H5) -> $4.860 | J39: =SUM(J31+J23+J15+J5) -> $4.860 | L39: =SUM(L31+L23+L15+L5) -> $5.960 | N39: =SUM(N31+N23+N15+N5) -> $5.960 | P39: =SUM(P31+P23+P15+P5) -> $5.937 | R39: =SUM(R31+R23+R15+R5) -> $5.968 | T39: =SUM(T31+T23+T15+T5) -> $5.968 | V39: =SUM(V31+V23+V15+V5) -> $5.938 | X39: =SUM(X31+X23+X15+X5) -> $5.938 | Z39: =SUM(Z31+Z23+Z15+Z5) -> $5.938 | AB39: =SUM(AB31+AB23+AB15+AB5) -> $5.938 | AD39: =SUM(AD31+AD23+AD15+AD5) -> $5.938

Sheet EPA 12-20
B2: Environmental Protection Agency Bay-Delta Totals Fiscal Years 2012 through 2025 (in millions of dollars)
B3: Interim Federal Action Plan (IFAP) Functional Areas / Programs and Projects | C3: FY 2012 | E3: FY 2013 | G3: FY 2014 | I3: FY 2015 | K3: FY 2016 | M3: FY 2017 | O3: FY 2018 | Q3: FY 2019 | S3: FY 2020 | U3: FY 2021 | W3: FY 2022 1 | Y3: FY 2022 IIJA | AA3: FY 2023 2 | AC3: FY 2023 IIJA | AE3: FY 2024 | AG3: FY 2024 IIJA | AI3: FY 2025 | AK3: FY 2025 IIJA
C4: sub | D4: total | E4: sub | F4: total | G4: sub | H4: total | I4: sub | J4: total | K4: sub | L4: total | M4: sub | N4: total | O4: sub | P4: total | Q4: sub | R4: total | S4: sub | T4: total | U4: sub | V4: total | W4: sub | X4: total | Y4: sub | Z4: total | AA4: sub | AB4: total | AC4: sub | AD4: total | AE4: sub | AF4: total | AG4: sub | AH4: total | AI4: sub | AJ4: total | AK4: sub | AL4: total
B5: Renewed Federal State Partnership | D5: $0.000 | F5: $0.000 | H5: $0.000 | J5: $0.000 | L5: $0.000 | N5: $0.000 | P5: $0.000 | R5: $0.000 | S5: $0.000 | U5: $0.000 | Y5: $0.000 | AA5: $0.000 | AC5: $0.000 | AE5: $0.000 | AG5: $0.000 | AI5: $0.000 | AK5: $0.000
B6: Smarter Water Supply & Use | D6: =SUM(C7:C7) -> $35.336 | F6: =SUM(E7:E7) -> $33.153 | H6: =SUM(G7:G7) -> $35.026 | J6: =SUM(I7:I7) -> $34.953 | L6: =SUM(K7:K7) -> $33.226 | N6: =SUM(M7:M7) -> $33.003 | P6: =SUM(O7:O7) -> $33.003 | R6: =SUM(Q7:Q7) -> $33.218 | T6: =SUM(S7:S7) -> $31.153 | V6: =SUM(U7:U7) -> $40.845 | X6: =SUM(W7:W7) -> $48.863 | Z6: $66.807 | AB6: $22.421 | AD6: $142.353 | AF6: $49.543 | AH6: $269.119 | AJ6: $42.618 | AL6: $277.806
B7: Drinking Water State Revolving Fund* | C7: $35.336 | E7: $33.153 | G7: $35.026 | I7: $34.953 | K7: $33.226 | M7: $33.003 | O7: $33.003 | Q7: $33.218 | S7: $31.153 | U7: $40.845 | W7: =116063000*0.421/1000000 -> $48.863 | Y7: $66.807 | AA7: $22.421 | AC7: $142.353 | AE7: $49.543 | AG7: $269.119 | AI7: $42.618 | AK7: $277.806
B8: Habitat Restoration | D8: =SUM(C9:C11) -> $50.559 | F8: =SUM(E9:E11) -> $46.634 | H8: =SUM(G9:G11) -> $47.988 | J8: =SUM(I9:I11) -> $48.145 | L8: =SUM(K9:K11) -> $46.425 | N8: =SUM(M9:M11) -> $46.100 | P8: =SUM(O9:O11) -> $46.425 | R8: =SUM(Q9:Q11) -> $34.241 | T8: =SUM(S9:S11) -> $39.343 | V8: =SUM(U9:U11) -> $57.932 | X8: =SUM(W9:W11) -> $61.563 | Z8: $59.824 | AB8: $78.158 | AD8: $69.085 | AF8: $108.853 | AH8: $81.320 | AJ8: =SUM(AI9:AI11) -> $90.360 | AL8: 87.076
B9: Clean Water State Revolving Fund* | C9: $44.124 | E9: $40.593 | G9: $42.631 | I9: $42.726 | K9: $41.006 | M9: $40.690 | O9: $41.039 | Q9: $29.173 | S9: $32.773 | U9: $48.310 | W9: ='EPA 12-20'!$W$7 -> $48.863 | Y9: $54.115 | AA9: $22.808 | AC9: $63.376 | AE9: $54.348 | AG9: $75.611 | AI9: $35.160 | AK9: $81.367
B10: SF Bay Delta geog progam | C10: $5.838 | E10: $5.529 | G10: $4.819 | I10: $4.819 | K10: $4.819 | M10: $4.810 | O10: $4.786 | Q10: $4.443 | S10: $5.907 | U10: $8.922 | W10: $12.000 | Y10: $4.800 | AA10: $54.500 | AC10: $4.800 | AE10: $54.505 | AG10: $4.800 | AI10: $54.500 | AK10: $4.800
B11: SF National Estuary Program | C11: $0.597 | E11: $0.512 | G11: $0.538 | I11: $0.600 | K11: $0.600 | M11: $0.600 | O11: $0.600 | Q11: $0.625 | S11: $0.663 | U11: $0.700 | W11: $0.700 | Y11: $0.909 | AA11: $0.850 | AC11: $0.909 | AE11: $0.085 | AG11: $0.0900 | AI11: $0.700 | AK11: $0.9090
B12: Drought & Floodplain Management | D12: $0.000 | F12: $0.000 | H12: $0.000 | J12: $0.000 | L12: $0.000 | N12: $0.000 | P12: $0.000
B13: Total | D13: =D5+D6+D8+D12 -> $85.895 | F13: =F5+F6+F8+F12 -> $79.787 | H13: =H5+H6+H8+H12 -> $83.014 | J13: =J5+J6+J8+J12 -> $83.098 | L13: =L5+L6+L8+L12 -> $79.651 | N13: =N5+N6+N8+N12 -> $79.103 | P13: =P5+P6+P8+P12 -> $79.428 | R13: =R5+R6+R8+R12 -> $67.459 | T13: =T5+T6+T8+T12 -> $70.496 | V13: =V5+V6+V8+V12 -> $98.777 | X13: =X5+X6+X8+X12 -> $110.425 | Z13: =Z5+Z6+Z8+Z12 -> $126.631 | AB13: =AB5+AB6+AB8+AB12 -> $100.579 | AD13: =AD5+AD6+AD8+AD12 -> $211.438 | AF13: =AF5+AF6+AF8+AF12 -> $158.396 | AH13: =AH5+AH6+AH8+AH12 -> $350.439 | AJ13: =AJ5+AJ6+AJ8+AJ12 -> $132.978 | AL13: =AL5+AL6+AL8+AL12 -> $364.882
B14: *SRF figures a projection of estimated distribution of California's total allocation based on land area in the Bay-Delta watershed. DWSRF numbers for 2023 and 2024 are TBD because we are waiting for approval of our drinking water needs survey that will change the allocation formula for DWSRF.
B15: Note: Included above are those categories of funds EPA has traditionally reported in the cross-cut. For the most part, they do not correspond to items in the IFAP.

Sheet EPA 2011 (hidden)
B2: Environmental Protection Agency Bay-Delta Totals1 Fiscal Year 2011
B3: (in millions of dollars)
B4: Program/Project Name | C4: Details | D4: Funding
D5: Category A | E5: Category B
B6: Ecosystem Restoration | D6: =SUM(D7:D9) -> $0.000 | E6: =SUM(E7:E9) -> $40.739
B7: CWA SRF | E7: $34.809
B8: San Francisco National Estuary Program | C8: CWA Section 320 | E8: $0.597
B9: SF Bay Delta Program | E9: $5.333
B10: Water Use Efficiency | D10: =SUM(D11) -> $0.000 | E10: =SUM(E11) -> $0.000
B11: CWA SRF
B12: Drinking Water Quality | D12: =SUM(D13) -> $0.000 | E12: =SUM(E13) -> $37.231
B13: Safe Drinking Water Act SRF | E13: 37.231
B14: Science | D14: =SUM(D15) -> $0.000 | E14: =SUM(E15) -> $0.000
B15: Science Program
B16: Total | D16: =SUM(D6,D12,D14) -> $0.000 | E16: =SUM(E6,E12,E14) -> $77.970
B17: Category A + Category B Total | E17: =SUM(D16:E16) -> $77.970
B18: 1 Revised January 2011 to project an estimated distribution of California's total allocation.

Sheet USEPA 2010 (hidden)
B3: UPDATE IF NECESSARY
B5: US Environmental Protection Agency Fiscal Year 2010 ($ in millions) /3
B6: Program/Project Name | C6: Details | D6: Funding
D7: Category A | E7: Category B
B8: Ecosystem Restoration | E8: $0.592 | F8: =D8+E8 -> $0.592
B9: CWA grants
B10: CWA SRF
B11: San Francisco National Estuary Program | C11: CWA Section 320
B12: Sacramento River Watershed Program | C12: CWA Section 104b (special appropriation)
B13: Water Use Efficiency
B14: CWA SRF
B15: Drinking Water Quality | F15: =D15+E15 -> $0.000
B16: Safe Drinking Water Act SRF
B17: Science Program | D17: $0.040
B18: Staff support to IEP
B19: Total: | D19: $0.040 | E19: =E8 -> $0.592 | F19: =D19+E19 -> $0.632

Sheet NOAA 2011 (hidden)
B2: NOAA Fisheries Bay-Delta Totals Fiscal Year 2011
B3: (in millions of dollars)
B4: Program/Project Name | C4: Details | D4: Funding
D5: Category A | E5: Category B
B6: Ecosystem Restoration | D6: =SUM(D7:D8) -> $0.150 | E6: =SUM(E7:E8) -> $0.075
B7: Program Oversight and Coordination | C7: Base Funding | D7: $0.150
B8: Screen Engineering and Review | C8: Base Funding | E8: $0.075
B9: Science Program | D9: =SUM(D10) -> $0.075 | E9: =SUM(E10) -> $0.000
B10: Interagency Ecological Program | C10: Base Funding | D10: $0.075
B11: Oversight & Coordination | D11: =SUM(D12:D13) -> $1.165 | E11: =SUM(E12:E13) -> $0.000
B12: General Oversight and Coordination | C12: Base Funding | D12: $0.015
B13: Water Operations Oversight and Coordination | C13: Base Funding | D13: $1.150
B14: Total | D14: =D6+D9+D11 -> $1.390 | E14: =E6+E9+E11 -> $0.075
B15: Category A + Category B Total | E15: =SUM(D14:E14) -> $1.465

Sheet NOAA 2010 (hidden)
B3: UPDATE IF NECESSARY
B7: NOAA Fisheries Fiscal Year 2010 ($ in millions)
B8: Program/Project Name | C8: Details | D8: Funding
D9: Category A | E9: Category B
B10: Ecosystem Restoration | D10: =SUM(D11:D12) -> $0.150 | E10: =SUM(E11:E12) -> $0.075 | F10: =D10+E10 -> $0.225
B11: Program Oversight and Coordination | C11: Base Funding | D11: $0.150
B12: Screen Engineering and Review | C12: Base Funding | E12: $0.075
B13: Environmental Water Account | D13: =SUM(D14) -> $0.075 | E13: =SUM(E14) -> $0.000 | F13: =D13+E13 -> $0.075
B14: Program Oversight and Coordination | C14: Base Funding | D14: $0.075
B15: Science Program | D15: =SUM(D16) -> $0.075 | E15: =SUM(E16) -> $0.000 | F15: =D15+E15 -> $0.075
B16: Interagency Ecological Program | C16: Base Funding | D16: $0.075
B17: Oversight & Coordination | D17: =SUM(D18) -> $0.150 | E17: =SUM(E18) -> $0.000
B18: General Oversight and Coordination | C18: Base Funding | D18: $0.150 | F18: =D18+E18 -> $0.150
B19: Total | D19: =SUM(D10,D13,D15,D17) -> $0.450 | E19: =SUM(E10,E13,E15,E17) -> $0.075 | F19: =D19+E19 -> $0.525

Sheet USF&WS 2010 (hidden)
B3: UPDATE IF NECESSARY
B5: US Fish & Wildlife Service Fiscal Year 2010 ($ in millions)
B6: Program/Project Name | C6: Details | D6: Funding
D7: Category A | E7: Category B
B8: Ecosystem Restoration | D8: =SUM(D9:D21) -> $1.230 | E8: =SUM(E9:E21) -> $0.600 | F8: =D8+E8 -> $1.830
B9: ERP Administration | C9: Anticipated based on past trends | D9: $1.230
B10: CVPIA, Anadromous Fish Restoration Program & Anadromous Fish Screen Program (RF) | C10: Reported under USBR appropriations;co-managed and implemented by both USBR and FWS
B11: CVPIA, Butte Creek restoration
B12: CVPIA, Clear Creek restoration (RF)
B13: CVPIA, Spawning Gravel/Riparian Habitat (RF)
B14: CVPIA, Water Acquisition (RF)
B15: CVPIA, (b)(1) Other Program (RF)
B16: Cooperative Endangered Species Conservation Fund | C16: Unable to forecast these competitively awarded funds | E16: TBD
B17: Endangered Species Recovery Program Funds | C17: Unable to forecast these competitively awarded funds | E17: TBD
B18: Partners For Fish and Wildlife | C18: Unable to forecast these competitively awarded funds | E18: TBD
B19: NAWCF grants | C19: Unable to forecast these competitively awarded funds | E19: TBD
B20: Central Valley Joint Venture | C20: Anticipated based on past trends | E20: $0.600
B21: Land Acquisition | C21: Anticipated based on past trends | E21: TBD | F21: PER RMO
B22: Science Program | D22: =D23 -> $0.189
B23: Interagency Ecological Program | C23: Anticipated based on past trends | D23: $0.189
B24: Science Administration
B25: Total | D25: =SUM(D9+D23) -> $1.419 | E25: =E8+E22 -> $0.600 | F25: =D25+E25 -> $2.019

Sheet F&WS 2011 (hidden)
B2: Fish and Wildlife Service Bay-Delta Totals Fiscal Year 2011
B3: (in millions of dollars)
B4: Program/Project Name | C4: Details | D4: Funding
D5: Category A | E5: Category B
B6: Ecosystem Restoration | D6: =SUM(D7:D19) -> $5.193 | E6: =SUM(E7:E19) -> $0.000
B7: ERP Administration | C7: Anticipated based on past trends | D7: $5.193
B8: CVPIA, Anadromous Fish Restoration Program & Anadromous Fish Screen Program (RF) | C8: Reported under USBR appropriations; co-managed and implemented by both USBR & FWS
B9: CVPIA, Butte Creek restoration
B10: CVPIA, Clear Creek restoration (RF)
B11: CVPIA, Spawning Gravel/Riparian Habitat (RF)
B12: CVPIA, Water Acquisition (RF)
B13: CVPIA, (b)(1) Other Program (RF)
B14: Cooperative Endangered Species Conservation Fund | C14: Unable to forecast these competitively awarded funds
B15: Endangered Species Recovery Program Funds | C15: Unable to forecast these competitively awarded funds
B16: Partners For Fish and Wildlife | C16: Unable to forecast these competitively awarded funds
B17: NAWCF grants | C17: Unable to forecast these competitively awarded funds
B18: Central Valley Joint Venture | C18: Anticipated based on past trends
B19: Land Acquisition | C19: Anticipated based on past trends
B20: Science Program | D20: =SUM(D21:D22) -> $0.000 | E20: =SUM(E21:E22) -> $0.000
B21: Interagency Ecological Program | C21: Anticipated based on past trends
B22: Science Administration
B23: Total | D23: =SUM(D6+D20) -> $5.193 | E23: =SUM(E6+E20) -> $0.000
B24: Category A + Category B Total | E24: =SUM(D23:E23) -> $5.193

Sheet BOR 2011 (hidden)
B2: Bureau of Reclamation Bay-Delta Totals Fiscal Year 2011
B3: (in millions of dollars)
B4: Program/Project Name | C4: Details | D4: Funding
D5: Category A | E5: Category B
B6: Ecosystem Restoration | D6: =SUM(D7:D26) -> $119.989 | E6: =SUM(E7:E26) -> $4.552
B7: Water Acquisition | C7: W&RR | D7: $2.000
B8: Clear Creek Restoration | C8: W&RR | D8: $0.251
B9: Tracy Fish Loss Replacement/Protection Program | C9: W&RR | D9: $0.000
B10: Butte Creek Restoration | C10: W&RR | D10: $0.000
B11: Suisun Marsh Protection | C11: W&RR | E11: $1.569
B12: Anadromous Fish Screen Program | C12: W&RR | D12: $0.350
B13: Anadromous Fish Screen Program | C13: California Bay-Delta Restoration, P.L.108-361 | D13: $2.000
B14: Anadromous Fish Restoration Program | C14: RF, 3406(b)(1) | D14: $6.070
B15: Other CVP Impacts | C15: RF, 3406(b)(1)other | E15: $1.700
B16: Anadromous Fish Screen Program | C16: RF, 3406(b)(21) | D16: $3.712
B17: Water Acquisition | C17: RF, 3406(b)(3), 3406(d)(2) | D17: $13.700
B18: Dedicated Project Yield | C18: RF, 3406(b)(2) | D18: $0.800
B19: Clear Creek Restoration | C19: RF, 3406(b)(12) | D19: $0.800
B20: Spawning Gravel/Riparian Habitat | C20: RF, 3406(b)(13) | D20: $0.700
B21: Bay-Delta Conservation Plan | C21: California Bay-Delta Restoration, P.L.108-361 | D21: $6.483
B22: Red Bluff Diversion Dam, Fish Passage | C22: W&RR | D22: $24.707
B23: San Joaquin River Restoration Program | C23: W&RR | D23: $5.016
B24: San Joaquin River Restoration Program (Mandatory) | C24: SJJR Settlement Act, Title X of P.L. 111-11 | D24: $51.900
B25: San Joaquin River Restoration Program | C25: RF, 3406(c)(1) | D25: $1.500
B26: Comp Assess & Monitoring Program | C26: RF, 2406(b)(16) | E26: $1.283
B27: Environmental Water Account | D27: =SUM(D28) -> $0.000 | E27: =SUM(E28) -> $0.000
B28: Water Acquisitions and Power | C28: California Bay-Delta Restoration, P.L.108-361 | D28: $0.000
B29: Water Use Efficiency | D29: =SUM(D30:D41) -> $18.370 | E29: =SUM(E30:E41) -> $0.000
B30: Water Conservation Projects | C30: California Bay-Delta Restoration, P.L.108-361 | D30: $6.285
B31: CVPIA, Water Conservation | C31: W&RR | D31: $2.291
B32: San Jose Area Water Reclamation and Reuse Program | C32: W&RR,Title XVI, Mid-Pacific Region | D32: $0.242
B33: Bay Area Regional Water Recycling Program (BARWRP) | C33: California Bay-Delta Restoration, P.L. 108-361,Title XVI, Mid-Pacific Region | D33: $1.200
B34: San Gabriel Basin Project | C34: W&RR,Title XVI, Lower Colorado Region | D34: $0.000
B35: San Diego Area Reclamation | C35: W&RR,Title XVI, Lower Colorado Region | D35: $4.959
B36: Calleguas Municipal Water District Recycling Project | C36: W&RR,Title XVI, Lower Colorado Region | D36: $1.397
B37: Orange County Regional Water Reclamation Project | C37: W&RR,Title XVI, Lower Colorado Region | D37: $0.000
B38: Pasadena Water Recycling Project | C38: W&RR,Title XVI, Lower Colorado Region | D38: $0.000
B39: Mission Basin Brakish Ground Water | C39: W&RR,Title XVI, Lower Colorado Region | D39: $0.000
B40: Long Beach Desalination Research and Development Project | C40: W&RR,Title XVI, Lower Colorado Region | D40: $0.998
B41: Long Beach Area Recycling Project | C41: W&RR,Title XVI, Lower Colorado Region | D41: $0.998
B42: Water Transfers | D42: =SUM(D43) -> $0.000 | E42: =SUM(E43) -> $0.000
B43: NEPA Analysis &Clearinghouse | C43: California Bay-Delta Restoration, P.L.108-361
B44: Drinking Water Quality | D44: =SUM(D45:D52) -> $4.990 | E44: =SUM(E45:E52) -> $8.370
B45: Drainage Management Program | C45: W&RR | E45: $7.271
B46: San Joaquin Basin Action Plan | C46: W&RR | E46: $0.350
B47: San Joaquin Basin Action Plan | C47: RF, 3406(d)(5) | E47: $0.200
B48: Land Retirement | C48: W&RR | E48: $0.049
B49: Land Retirement | C49: RF, 3408(h) | E49: $0.500
B50: Contra Costa Water District Alternative Intake Project | C50: California Bay-Delta Restoration, P.L.108-361 | D50: $0.000
B51: San Joaquin River Salinity Management | C51: California Bay-Delta Restoration, P.L.108-361 | D51: $4.245
B52: Program to Meet Standards (PTMS) | C52: California Bay-Delta Restoration, P.L.108-361 | D52: $0.745
B53: Storage | D53: =SUM(D54:D61) -> $5.437 | E53: =SUM(E54:E61) -> $0.000
B54: CVP, Yield Feasibility Investigation | C54: W&RR | D54: $0.447
B55: Project Yield | C55: RF, 3408(j) | D55: $0.000
B56: Los Vaqueros | C56: California Bay-Delta Restoration, P.L.108-361 | D56: $1.142
B57: San Joaquin River Basin Study | C57: California Bay-Delta Restoration, P.L.108-361 | D57: $1.528
B58: Sites Reservoir | C58: California Bay-Delta Restoration, P.L.108-361 | D58: $1.100
B59: Shasta Enlargement | C59: California Bay-Delta Restoration, P.L.108-361 | D59: $1.220
B60: In Delta Storage | C60: California Bay-Delta Restoration, P.L.108-361 | D60: $0.000
B61: Storage Supplemental Feasibility | C61: California Bay-Delta Restoration, P.L.108-361 | D61: $0.000
B62: Conveyance | D62: =SUM(D63:D77) -> $5.534 | E62: =SUM(E63:E77) -> $0.000
B63: Tracy Fish Test Facility | C63: California Bay-Delta Restoration, P.L.108-361 | D63: $0.000
B64: Tracy (Jones) Pumping Plant Mitigation Program | C64: W&RR | D64: $2.041
B65: Tracy (Jones) Pumping Plant Mitigation Program | C65: RF,3406(b)(4) | D65: $0.000
B66: Tracy Fish Test Facility | C66: RF,3406(b)(4) | D66: $0.000
B67: DMC Intertie | C67: W&RR | D67: $0.000
B68: Tracy Fish Screen Feasibility Study | C68: California Bay-Delta Restoration, P.L.108-361 | D68: $0.000
B69: DMC Intertie | C69: California Bay-Delta Restoration, P.L.108-361 | D69: $3.293
B70: Enlarged DMC Intertie w/Calif Aqueduct Feasibility Study | C70: California Bay-Delta Restoration, P.L.108-361 | D70: $0.000
B71: San Luis Lowpoint Feasibility Study | C71: California Bay-Delta Restoration, P.L.108-361 | D71: $0.100
B72: Frank's Tract Feasibility Study | C72: California Bay-Delta Restoration, P.L.108-361 | D72: $0.100
B73: Through Delta Evaluation | C73: California Bay-Delta Restoration, P.L.108-361 | D73: $0.000
B74: Recirculation Feasibility Study | C74: California Bay-Delta Restoration, P.L.108-361 | D74: $0.000
B75: South Delta Improvement Plan Coordination | C75: California Bay-Delta Restoration, P.L.108-361 | D75: $0.000
B76: South Delta Improvement Plan | C76: W&RR | D76: $0.000
B77: Conveyance Supplemental Feasibility | C77: California Bay-Delta Restoration, P.L.108-361 | D77: $0.000
B78: Science Program | D78: =SUM(D79:D82) -> $16.295 | E78: =SUM(E79:E82) -> $0.000
B79: Interagency Ecological Program (IEP) | C79: W&RR | D79: $5.961
B80: Pelagic Organisms Decline | C80: W&RR | D80: $1.851
B81: CALFED Science Activities | C81: California Bay-Delta Restoration, P.L.108-361 | D81: $4.483
B82: Two-Gates Fish Demonstration Plan | C82: California Bay-Delta Restoration, P.L.108-361 | D82: $4.000
B83: Oversight & Coordination | D83: =SUM(D84) -> $1.996 | E83: =SUM(E84) -> $0.000
B84: CALFED Program Management, Oversight, and Coordination | C84: California Bay-Delta Restoration, P.L.108-361 | D84: $1.996
B85: Total | D85: =SUM(D6,D27,D29,D42,D44,D53,D62,D78,D83) -> $172.611 | E85: =SUM(E6,E27,E29,E42,E44,E53,E62,E78,E83) -> $12.922
B86: Category A + Category B Total | E86: =SUM(D85:E85) -> $185.533

Sheet USBR 2010 (hidden)
A3: UPDATE IF NECESSARY
A5: Bureau of Reclamation Fiscal Year 2010 ($ in millions) 3/
A6: Program/Project Name | B6: Details | C6: Funding
C7: Category A | D7: Category B | H7: BOR | I7: 94.66
A8: Ecosystem Restoration | C8: =SUM(C9:C23) -> $23.540 | D8: =SUM(D9:D23) -> $3.708 | E8: =C8+D8 -> $27.248 | H8: Water Management | I8: 0.000
A9: Water Acquisition | B9: W&RR | C9: $0.000 | H9: Storage | I9: 4.500 | J9: =E50 -> $4.500
A10: Clear Creek Restoration | B10: W&RR | C10: $0.000 | H10: Conveyance | I10: 6.361 | J10: =E59 -> $6.361
A11: Tracy Fish Loss Replacement/Protection Program | B11: W&RR | C11: $0.000 | H11: Water Use Efficiency | I11: 12.599 | J11: =E26 -> $12.599
A12: Butte Creek Restoration | B12: W&RR | C12: $0.000 | H12: Water Transfers | I12: 0.000 | J12: =E39 -> $0.000
A13: Suisun Marsh Protection | B13: W&RR | D13: $1.540 | H13: Environmental Water Account | I13: 0.000 | J13: =E24 -> $0.000
A14: Anadromous Fish Screen Program | B14: W&RR | C14: $0.000 | H14: Drinking Water Quality | I14: 7.706 | J14: =E41 -> $7.706
A15: Anadromous Fish Restoration Program | B15: RF, 3406(b)(1) | C15: $4.190 | H15: Levee System Integrity | I15: 0.000
A16: Other CVP Impacts | B16: RF, 3406(b)(1)other | D16: $1.368 | H16: Ecosystem Restoration | I16: 27.248 | J16: =E8 -> $27.248
A17: Anadromous Fish Screen Program | B17: RF, 3406(b)(21) | C17: $1.100 | H17: Science | I17: 9.550 | J17: =E74 -> $9.550
A18: Water Acquisition | B18: RF, 3406(b)(3), 3406(d)(2) | C18: $8.700 | H18: Oversight & Coordination | I18: 2.000 | J18: =E78 -> $2.000
A19: Dedicated Project Yield | B19: RF, 3406(b)(2) | C19: $0.600 | H19: Other | I19: 0.000
A20: Clear Creek Restoration | B20: RF, 3406(b)(12) | C20: $0.600
A21: Spawning Gravel/Riparian Habitat | B21: RF, 3406(b)(13) | C21: $0.500
A22: Bay-Delta Conservation Plan | B22: California Bay-Delta Restoration, P.L.108-361 | C22: $7.850
A23: Comp Assess & Monitoring Program | B23: RF, 2406(b)(16) | D23: $0.800
A24: Environmental Water Account | C24: =SUM(C25) -> $0.000 | E24: =C24+D24 -> $0.000
A25: Water Acquisitions and Power | B25: California Bay-Delta Restoration, P.L.108-361 | C25: $0.000
A26: Water Use Efficiency | C26: =SUM(C27:C38) -> $12.599 | D26: =SUM(D27:D38) -> $0.000 | E26: =C26+D26 -> $12.599
A27: Water Conservation Projects | B27: California Bay-Delta Restoration, P.L.108-361 | C27: $2.000
A28: CVPIA, Water Conservation | B28: W&RR | C28: $1.892
A29: San Jose Area Water Reclamation and Reuse Program | B29: W&RR,Title XVI, Mid-Pacific Region | C29: $0.100
A30: Bay Area Regional Water Recycling Program (BARWRP) | B30: California Bay-Delta Restoration, P.L. 108-361,Title XVI, Mid-Pacific Region | C30: $3.000
A31: San Gabriel Basin Project | B31: W&RR,Title XVI, Lower Colorado Region | C31: $0.934
A32: San Diego Area Reclamation | B32: W&RR,Title XVI, Lower Colorado Region | C32: $2.336
A33: Calleguas Municipal Water District Recycling Project | B33: W&RR,Title XVI, Lower Colorado Region | C33: $0.935
A34: Orange County Regional Water Reclamation Project | B34: W&RR,Title XVI, Lower Colorado Region | C34: $0.000
A35: Pasadena Water Recycling Project | B35: W&RR,Title XVI, Lower Colorado Region | C35: $0.000
A36: Mission Basin Brakish Ground Water | B36: W&RR,Title XVI, Lower Colorado Region | C36: $0.000
A37: Long Beach Desalination Research and Development Project | B37: W&RR,Title XVI, Lower Colorado Region | C37: $0.467
A38: Long Beach Area Recycling Project | B38: W&RR,Title XVI, Lower Colorado Region | C38: $0.935
A39: Water Transfers | C39: =SUM(C40) -> $0.000 | E39: =C39+D39 -> $0.000
A40: NEPA Analysis &Clearinghouse | B40: California Bay-Delta Restoration, P.L.108-361
A41: Drinking Water Quality | C41: =SUM(C42:C49) -> $5.000 | D41: =SUM(D42:D48) -> $2.706 | E41: =C41+D41 -> $7.706
A42: Drainage Management Program | B42: W&RR | D42: $1.350
A43: San Joaquin Basin Action Plan | B43: W&RR | D43: $0.356
A44: San Joaquin Basin Action Plan | B44: RF, 3406(d)(5) | D44: $0.500
A45: Land Retirement | B45: W&RR | D45: $0.000
A46: Land Retirement | B46: RF, 3408(h) | D46: $0.500
A47: Contra Costa Water District Alternative Intake Project | B47: California Bay-Delta Restoration, P.L.108-361 | C47: $0.000
A48: San Joaquin River Salinity Management | B48: California Bay-Delta Restoration, P.L.108-361 | C48: $4.250
A49: Program to Meet Standards (PTMS) | B49: California Bay-Delta Restoration, P.L.108-361 | C49: $0.750
A50: Storage | C50: =SUM(C51:C58) -> $4.500 | E50: =C50+D50 -> $4.500
A51: CVP, Yield Feasibility Investigation | B51: W&RR | C51: $0.450
A52: Project Yield | B52: RF, 3408(j) | C52: $0.000
A53: Los Vaqueros | B53: California Bay-Delta Restoration, P.L.108-361 | C53: $0.308
A54: San Joaquin River Basin Study | B54: California Bay-Delta Restoration, P.L.108-361 | C54: $0.877
A55: Sites Reservoir | B55: California Bay-Delta Restoration, P.L.108-361 | C55: $0.607
A56: Shasta Enlargement | B56: California Bay-Delta Restoration, P.L.108-361 | C56: $0.909
A57: In Delta Storage | B57: California Bay-Delta Restoration, P.L.108-361 | C57: $0.000
A58: Storage Supplemental Feasibility | B58: California Bay-Delta Restoration, P.L.108-361 | C58: $1.349
A59: Conveyance | C59: =SUM(C60:C73) -> $6.361 | E59: =C59+D59 -> $6.361
A60: Tracy Fish Test Facility | B60: California Bay-Delta Restoration, P.L.108-361 | C60: $0.000
A61: Tracy (Jones) Pumping Plant Mitigation Program | B61: W&RR | C61: $2.011
A62: Tracy (Jones) Pumping Plant Mitigation Program | B62: RF,3406(b)(4) | C62: $0.250
A63: Tracy Fish Test Facility | B63: RF,3406(b)(4) | C63: $0.000
A64: DMC Intertie | B64: W&RR | C64: $0.000
A65: Tracy Fish Screen Feasibility Study | B65: California Bay-Delta Restoration, P.L.108-361 | C65: $0.000
A66: Enlarged DMC Intertie w/Calif Aqueduct Feasibility Study | B66: California Bay-Delta Restoration, P.L.108-361 | C66: $0.000
A67: San Luis Lowpoint Feasibility Study | B67: California Bay-Delta Restoration, P.L.108-361 | C67: $1.500
A68: Frank's Tract Feasibility Study | B68: California Bay-Delta Restoration, P.L.108-361 | C68: $1.600
A69: Through Delta Evaluation | B69: California Bay-Delta Restoration, P.L.108-361 | C69: $0.000
A70: Recirculation Feasibility Study | B70: California Bay-Delta Restoration, P.L.108-361 | C70: $0.250
A71: South Delta Improvement Plan Coordination | B71: California Bay-Delta Restoration, P.L.108-361 | C71: $0.250
A72: South Delta Improvement Plan | B72: W&RR | C72: $0.000
A73: Conveyance Supplemental Feasibility | B73: California Bay-Delta Restoration, P.L.108-361 | C73: $0.500
A74: Science Program | C74: =SUM(C75:C77) -> $9.550 | E74: =C74+D74 -> $9.550
A75: Interagency Ecological Program (IEP) | B75: W&RR | C75: $4.000
A76: Pelagic Organisms Decline | B76: W&RR | C76: $2.550
A77: CALFED Science Activities | B77: California Bay-Delta Restoration, P.L.108-361 | C77: $3.000
A78: Oversight & Coordination | C78: =SUM(C79) -> $2.000 | E78: =C78+D78 -> $2.000
A79: CALFED Program Management, Oversight, and Coordination | B79: California Bay-Delta Restoration, P.L.108-361 | C79: $2.000
A80: Total | C80: =SUM(C8,C24,C26,C39,C41,C50,C59,C74,C78) -> $63.550 | D80: =SUM(D8,D24,D26,D39,D41,D50,D59,D74,D78) -> $6.414 | E80: =C80+D80 -> $69.964
A81: 3/ President's Budget

Sheet USACE 2011 (hidden)
B2: U.S. Army Corps of Engineers Bay-Delta Totals Fiscal Year 2011
B3: (in millions of dollars)
B4: Program/Project Name | C4: Details | D4: Funding
D5: Category A | E5: Category B
B6: Ecosystem Restoration | D6: =SUM(D7:D50) -> $0.600 | E6: =SUM(E7:E50) -> $28.732
B7: Cache Creek (Gravel Pit) (206)*
B8: Calaveras County, CA (205)*
B9: CALFED (HR 2828)** | D9: $0.600
B10: Cherokee Canal, Oroville (1135)*
B11: City of Folsom (503)*
B12: Clear Lake (206)*
B13: Clear Lake Basin (503)*
B14: Clover Creek, Redding (206)*
B15: Cosgrove Creek, CA (205)*
B16: Cosumnes & Mokelumne Rivers*
B17: Delta Science Center (206)*
B18: Hamilton Airfield Wetland Restoration* | E18: $0.999
B19: Hamilton City, CA** | E19: $0.000
B20: Mormon Channel/Stockton (1135)*
B21: Napa River, Salt Marsh Restoration* | E21: $17.214
B22: NCS, Middle Creek, CA*
B23: Northern California Streams:
B24: Lower Sacramento R. Riparian Reveg.*
B25: Pacific Flyway Center (206)*
B26: Penn Mine (206)*
B27: Pine Flat Turbine Bypass (1135)*
B28: Pine Flat F&W*
B29: Prospect Island (1135)*
B30: Putah Creek South Fork (1135)*
B31: Regional Conservation Conjunctive Use Project (502)*
B32: Sacramento Deep Water Ship Channel, CA** | E32: $2.794
B33: Sacramento River 30 Foot, CA** | E33: $3.542
B34: San Joaquin River Port of Stockton, CA** | E34: $3.560
B35: Sacramento River and Tributaries (Debris Control), Englebright, CA** | E35: $0.532
B36: Sacramento River Flood Control Prj (GCID)*
B37: Sacramento River Flood Control Prj GRR** | E37: $0.000
B38: Sacramento River Watershed (503)*
B39: Sand Cove (1135)*
B40: San Francisco Bay to Stockton, CA** | E40: $0.000
B41: Santa Clara Basin (206)*
B42: Suisun Marsh*
B43: Turtle Bay Museum (206)*
B44: Upper Sacramento River, Murphy Slough (1135)*
B45: Wildcat & San Pablo Creeks (1135)*
B46: Woodson Bridge (1135)*
B47: Yolo Basin Wetlands (aka Vic Fazio Area)*
B48: Yolo Basin Wetlands (Davis Site)(1135)*
B49: Yuba River, Daguerre & Englebright Dams (Yuba River Fish Passage)** | E49: $0.000
B50: Yuba River (Daguerre Point Dam), CA** | E50: $0.091
B51: Watershed | D51: =SUM(D52:D53) -> $0.000 | E51: =SUM(E52:E53) -> $0.000
B52: Napa Valley Watershed Management*
B53: San Pablo Bay Watershed** | E53: $0.000
B54: Levees | D54: =SUM(D55:D59) -> $0.000 | E54: =SUM(E55:E59) -> $4.440
B55: American River Common Features, CA** | E55: $4.200
B56: Sacramento-San Joaquin Delta: Special Study*
B57: Sacramento-San Joaquin Delta: Western Delta Islands*
B58: Sacramento-San Joaquin Delta: North Delta Island*
B59: Sacramento-San Joaquin Delta: Delta Islands and Levees** | E59: $0.240
B60: Storage | D60: =SUM(D61) -> $0.000 | E60: =SUM(E61) -> $0.000
B61: Stockton Metro (Farmington)*
B62: Science | D62: =SUM(D63) -> $0.000 | E62: =SUM(E63) -> $0.000
B63: Interagency Ecological Program*
B64: Oversight & Coordination | D64: =SUM(D65) -> $0.000 | E64: =SUM(E65) -> $0.299
B65: CALFED Coordination Activities** | E65: $0.299
B66: Pinole Shoal Delta Long Term Management Strategy** | E66: $0.000
B67: Integrated Regional Water Management | D67: =SUM(D68:D102) -> $0.000 | E67: =SUM(E68:E102) -> $64.064
B68: Black Butte Lake, CA** | E68: $1.243
B69: Buchanan Dam - H.V. Eastman, CA** | E69: $1.040
B70: Coyote and Berryessa Creeks* | E70: $0.045
B71: Farmington Dam, CA** | E71: $0.450
B72: Farmington Recharge, CA (219)** | E72: $0.000
B73: Guadalupe River*
B74: Hidden Dam, Hensley Lake, CA** | E74: $1.239
B75: Inspection of Completed Works (ICW), CA** | E75: $2.478
B76: Isabella Lake, CA** | E76: $1.606
B77: Los Angeles County Drainage Area (Stormwater Mgmt Plan)*
B78: LA County Drainage Area, CA** | E78: $6.698
B79: LACDA (Hansen & Lopez Dams) Water Conservation & Supply Study, CA** | E79: $0.000
B80: LACDA (Water Conservation and Supply) Study, CA** | E80: $0.000
B81: Merced County Streams, CA** | E81: $0.401
B82: Napa River Flood Control Project*
B83: NCS, Fairfield/Cordelia Marsh*
B84: New Hogan Lake, CA** | E84: $1.160
B85: New Melones Lake, CA** | E85: $0.266
B86: Pine Flat Lake, CA** | E86: $2.250
B87: Raymond, Six, Chino & San Gabriel Basin, CA (219)** | E87: $0.000
B88: Sacramento River Bank Protection, CA** | E88: $9.979
B89: Sacramento-San Joaquin Comprehensive Basin Study (Central Valley Integrated Flood Management), CA** | E89: $0.000
B90: Santa Ana River Basin, CA** | E90: $4.547
B91: Santa Ana River Mainstem* | E91: $24.948
B92: Santa Ana River Basin, (Prado Basin Water Supply), CA** | E92: $0.000
B93: Scheduled Reservoir Operations, CA** | E93: $1.391
B94: SJRB, Lower San Joaquin, CA** | E94: $0.521
B95: SJRB, USACE Reservoir Operation*
B96: Success Dam and Reservoir, Tule River, Dam Safety Seismic Remediation, CA** | E96: $1.098
B97: South Perris Water Supply Desalination, CA (219)** | E97: $0.000
B98: Success Lake, CA** | E98: $1.515
B99: Terminus Dam (Lake Kaweah), CA** | E99: $1.189
B100: Tule River Success Enlargement, CA** | E100: $0.000
B101: Wildcat and San Pablo Creeks (GI)*
B102: Wildcat and San Pablo Creeks (CG)*
B103: Total | D103: =SUM(D6,D51,D54,D60,D62,D64,D67) -> $0.600 | E103: =SUM(E6,E51,E54,E60,E62,E64,E67) -> $97.535
B104: Category A + Category B Total | E104: =SUM(D103:E103) -> $98.135
B105: *These projects were pre-IFAP and are no longer associated with California Bay-Delta.
B106: **These projects are part of the current IFAP.
B107: FY 11 enacted numbers included reduction for rescissions.

Sheet USACE 2010 (hidden)
B3: UPDATE IF NECESSARY
B5: Army Corps of Engineers Fiscal Year 2010 ($ in millions)
B6: Program/Project Name | C6: Details | D6: Funding
D7: Category A | E7: Category B
B8: Ecosystem Restoration | D8: =SUM(D9:D44) -> $18.500 | E8: =SUM(E9:E44) -> $0.000
B9: Cache Creek (Gravel Pit) (206)
B10: Calaveras County, CA (205)
B11: CALFED (HR 2828)
B12: Cherokee Canal, Oroville (1135)
B13: City of Folsom (503)
B14: Clear Lake (206)
B15: Clear Lake Basin (503)
B16: Clover Creek, Redding (206)
B17: Cosgrove Creek, CA (205)
B18: Cosumnes & Mokelumne Rivers
B19: Delta Science Center (206)
B20: Hamilton Airfield Wetland Restoration | D20: $17.900
B21: Mormon Channel/Stockton (1135)
B22: Napa River, Salt Marsh Restoration
B23: NCS, Middle Creek,
B24: Northern California Streams:
B25: Lower Sacramento R. Riparian Reveg.
B26: Pacific Flyway Center (206)
B27: Penn Mine (206)
B28: Pine Flat Turbine Bypass (1135)
B29: Pine Flat F&W
B30: Prospect Island (1135)
B31: Putah Creek South Fork (1135)
B32: Regional Conservation Conjunctive Use Project (502)
B33: Sacramento River Flood Control Prj (GCID) | D33: $0.600
B34: Sacramento River Flood Control Prj GRR
B35: Sacramento River Watershed (503)
B36: Sand Cove (1135)
B37: Santa Clara Basin (206)
B38: Suisun Marsh
B39: Turtle Bay Museum (206)
B40: Upper Sacramento River, Murphy Slough (1135)
B41: Wildcat & San Pablo Creeks (1135)
B42: Woodson Bridge (1135)
B43: Yolo Basin Wetlands (aka Vic Fazio Area)
B44: Yolo Basin Wetlands (Davis Site)(1135)
B45: Watershed | D45: =SUM(D46:D47) -> $0.000
B46: Napa Valley Watershed Management
B47: San Pablo Bay Watershed
B48: Levees | D48: =SUM(D49:D53) -> $0.968 | E48: =SUM(E49:E53) -> $0.000
B49: Sacramento-San Joaquin Delta: Special Study
B50: Sacramento-San Joaquin Delta: Western Delta Islands
B51: Sacramento-San Joaquin Delta: North Delta Island
B52: Sacramento-San Joaquin Delta: Delta Islands and Levees | D52: $0.968
B53: Storage
B54: Stockton Metro (Farmington)
B55: Science
B56: Interagency Ecological Program
B57: Oversight & Coordination | D57: =SUM(D58) -> $0.960 | E57: =SUM(E58) -> $0.000
B58: CALFED Coordination Activities | D58: $0.960
B59: Integrated Regional Water Management | D59: =SUM(D60:D70) -> $59.550
B60: Guadalupe River
B61: Los Angeles County Drainage Area (Stormwater Mgmt Plan)
B62: Napa River Flood Control Project | D62: $39.500
B63: Wildcat and San Pablo Creeks (GI)
B64: Wildcat and San Pablo Creeks (CG)
B65: Sac-SJ Comprehensive
B66: SJRB, Lower San Joaquin, CA
B67: SJRB, USACE Reservoir Operation
B68: Santa Ana River Mainstem | D68: $19.100
B69: Coyote and Berryessa Creeks | D69: $0.950
B70: NCS, Fairfield/Cordelia Marsh
B71: Total | D71: =D8+D45+D48+D53+D55+D57+D59 -> $79.978 | E71: =E8+E45+E55+E57+E59 -> $0.000

Sheet NRCS 2011 (hidden)
B2: Natural Resources Conservation Service Bay-Delta Totals1 Fiscal Year 2011
B3: (in millions of dollars)
B4: Program/Project Name | C4: Details | D4: Funding
D5: Category A | E5: Category B
B6: Ecosystem Restoration | D6: =SUM(D7:D10) -> $0.000 | E6: =SUM(E7:E10) -> $33.775
B7: Environmental Quality Incentives Program (EQIP) | C7: Estimated based on 2011 initial allocation. Until program participants sign up by conservation practice in each county and are approved, cannot project figures with certainty. | E7: $5.000
B8: Wetland Reserve Program (WRP) | C8: Estimated based on 2011 initial allocation. Until program participants sign up in each county and are approved, cannot project figures with certainty. | E8: $25.375
B9: Agricultural Water Enhancement Program (AWEP) benefiting water quality2 | C9: Estimated based on 2011 initial allocation. Multi-year contracts are expected to receive continued funding. New AWEPs may be approved. | E9: $1.500
B10: Cooperative Conservation Partnership Initiative (CCPI)3 | C10: Estimated based on 2011 initial allocation. Multi-year contracts are expected to receive continued funding. New CCPIs may be approved. | E10: $1.900
B11: Water Use Efficiency | D11: =SUM(D12:D14) -> $0.000 | E11: =SUM(E12:E14) -> $22.300
B12: Environmental Quality Incentives Program (EQIP) | C12: Estimated based on 2011 initial allocation. Until program participants sign up by conservation practice in each county and are approved, cannot project figures with certainty. | E12: $14.000
B13: Agricultural Water Enhancement Program (AWEP) benefiting water quantity4 | C13: Estimated based on 2011 initial allocation. Multi-year contracts are expected to receive continued funding. New AWEPs may be approved. | E13: $8.200
B14: Cooperative Conservation Partnership Initiative (CCPI) | C14: Estimated based on 2011 initial allocation. Multi-year contracts are expected to receive continued funding. New CCPIs may be approved. | E14: $0.100
B15: Watershed5 | D15: =SUM(D16) -> $0.000 | E15: =SUM(E16) -> $0.000
B17: Total | D17: =D6+D11+D15 -> $0.000 | E17: =E6+E11+E15 -> $56.075
B18: Category A + Category B Total | E18: =SUM(D17:E17) -> $56.075
B19: 1 The 2008 Farm Bill provided substantial increases in funding allocations, funding in Category B changed accordingly.
B20: 2 AWEP is a new program authorized by the 2008 Farm Bill.
B21: 3 CCPI is a new program authorized by the 2008 Farm Bill. It includes funding set aside from the Wildlife Habitat Incentive Program (WHIP) and the Environmental Quality Incentives Program (EQIP).
B22: 4 The AWEP program authorized by the 2008 Farm Bill replaced the 2002 Farm Bill's Ground and Surface Water Program.
B23: 5 The CALFED Watershed Program has been eliminated and re-established as a State run program housed at the California Department of Conservation. No funding has been received to track for the Watershed Program since the 2002 Farm Bill eliminated Geographic Priority Areas.

Sheet NRCS 2010 (hidden)
B3: UPDATE IF NECESSARY
B5: USDA Natural Resources Conservation Service Fiscal Year 2010 ($ in millions)
B6: Program/Project Name | C6: Details | D6: Funding
D7: Category A | E7: Category B
B8: Ecosystem Restoration | D8: $0.000 | E8: $13.500 | F8: =SUM(D8+E8) -> $13.500
B9: Environmental Quality Incentives Program (EQIP) | C9: Estimated based on 2009 initial allocations. Until program participants sign up by conservation practice in each county and are approved, cannot project figures with certainty. | D9: $0.000 | E9: $10.000
B10: Wetland Reserve Program (WRP) | C10: Estimated based on 2008 final estimates and 2009 initial allocations. Until program participants signup by conservation practice in each county and are approved, cannot project figures with certainty. | D10: $0.000 | E10: $3.500
B11: Water Use Efficiency | D11: $0.000 | E11: $8.000 | F11: =SUM(D11+E11) -> $8.000
B12: Environmental Quality Incentives Program (EQIP) | C12: Estimated based on 2008 final estimates and 2009 initial allocations. Until program participants signup by conservation practice in each county and are approved, cannot project figures with certainty. | D12: $0.000 | E12: $8.000
B13: Watershed | D13: $0.000 | E13: $0.000 | F13: =SUM(D13+E13) -> $0.000
B14: Environmental Quality Incentives Program (EQIP) | C14: New rules and allocation process eliminated Geographic Priority Areas. | D14: $0.000 | E14: $0.000
B15: Total | D15: $0.000 | E15: $21.500 | F15: =SUM(D15+E15) -> $21.500
